Workbook

Sheet Carta Apresentação
A3: MINISTÉRIO DE INTEGRAÇÃO NACIONAL - MI
A5: COMPANHIA DE DESENVOLVIMENTO DOS VALES DO SÃO FRANCISCO E DO PARNAÍBA
A7: CARTA DE APRESENTAÇÃO DA PROPOSTA
A10: DADOS DO PROPONENTE: CONSÓRCIO CONCREMAT-MAGNA-VECTOR
A11: RAZÃO SOCIAL: CONCREMAT ENGENHARIA E TECNOLOGIA S.A
A12: CNPJ: 33.146.648/0001-20
A13: ENDEREÇO: Rua Euclides da Cunha nº 106, São Cristóvão – Rio de Janeiro/RJ
A14: FONE: (61) 3213-8750
A15: EMAIL: marcio.tagliari@concremat.com.br
A16: SITE: www.concremat.com.br
A19: À
A20: CODEVASF
A21: SGA/Norte, Quadra 601, Conjunto I
A22: CEP 70.830.901 - Brasília - DF
A23: Ref.: Edital Nº 15/2018
A25: Prezados Senhores,
A27: Tendo examinado o Edital Nº 15/2018 e seus elementos técnicos constitutivos, nós, abaixo-assinados, oferecemos proposta para execução dos serviços de apoio técnico especializado para acompanhamento de testes, comissionamentos e pré-operação e planejamento da gestão das infraestruturas integrantes dos Eixos Norte e Leste do Projeto de Integração do Rio São Francisco com bacias hidrográficas do Nordeste Setentrional - PISF, com área de atuação nos estados de Pernambuco, Paraíba, Ceará e Rio Grande do Norte, pelo valor global de R$ 44.900.000,00 (quarenta e quatro milhões e novecentos mil reais), de acordo com a planilha de preços em anexo, que é parte integrante desta proposta.
A28: Comprometendo-nos, se nossa proposta for aceita, a executar os serviços no prazo fixado no Edital e Anexos, observando rigorosamente as normas técnicas brasileiras ou qualquer outra norma que garanta a qualidade igual ou superior, bem como as recomendações e instruções da CODEVASF, assumindo, desde já, a integral responsabilidade pela perfeita realização dos trabalhos, de conformidade com as especificações. Caso nossa proposta for aceita, obteremos garantia de um Banco num valor que não exceda 5% (cinco por cento) do valor do Contrato, para a realização do contrato.
A29: Foram utilizados em nosso orçamento Despesas Fiscais de: Serviços 15,21% e Encargos Sociais: Horista (DF) = 113,83%, Horista (PE) = 117,18%, Mensalista (DF) = 72,72%, Mensalista (PE) = 72,27% e Sem Vínculo = 20,00%.
A30: O Regime Tributário a que estamos sujeitos é o de Lucro Real.
A31: Concordamos em manter a validade desta proposta por um período de 60 (sessenta) dias desde a data fixada para abertura das propostas, ou seja, 18/02/2019, representando um compromisso que pode ser aceito a qualquer tempo antes da expiração do prazo.
A32: Até que seja preparado e assinado um contrato formal, esta proposta será considerada um contrato de obrigação entre as partes.
A33: Na oportunidade, credenciamos junto à CODEVASF o Sr. Marcio Tagliari, carteira de identidade nº 60.296.70, Órgão Expedidor SSP/SP, ao qual outorgamos os mais amplos poderes inclusive para interpor recursos, quando cabíveis transigir, desistir, assinar atas e documentos e, enfim, praticar os demais atos no presente processo licitatório.
A34: Declaramos que temos pleno conhecimento de todos os aspectos relativos à licitação em causa.
A35: Declaramos, ainda, nossa plena concordância com as condições constantes no presente Edital e seus anexos e que em nossa proposta estão incluídas todas as despesas, inclusive aquelas relativas a taxas, tributos, encargos sociais, ensaios, testes e demais provas exigidas por normas técnicas oficiais, que possam influir direta ou indiretamente no custo de execução dos serviços, e, ainda, as despesas relativas à mobilização e desmobilização de pessoal, máquinas e equipamentos, sem que nos caiba, em qualquer caso, direito regressivo em relação à CODEVASF.
A37: Atenciosamente
A41: Eng. Marcio Tagliari
A42: Diretor da CONCREMAT Engenharia e Tecnologia S.A (CNPJ - 33.146.648/0001-20)
A43: e Representante Legal do CONSÓRCIO CONCREMAT-MAGNA-VECTOR

Sheet Resumo Total
A1: Ministério da Integração Nacional - MI
A2: Companhia de Desenvolvimento dos Vales do São Francisco e do Parnaíba
A5: CONTRATAÇÃO DOS SERVIÇOS TÉCNICOS ESPECIALIZADOS DE APOIO ÀS ATIVIDADES DA GESTÃO DO PROJETO DE INTEGRAÇÃO DO RIO SÃO FRANCISCO COM AS BACIAS HIDROGRÁFICAS DO NORDESTE SETENTRIONAL – PISF
A9: RESUMO GERAL
A11: ITEM | B11: DISCRIMINAÇÃO | C11: Preço Total (R$)
A14: 1. | B14: Mão-de-Obra (Incluindo Encargos Sociais, Benefícios e Despesas Indiretas) | C14: =SUM(C15:C21) -> 37924806.91
A15: 1.1 | B15: Apoio a Gestão e Atividades Técnicas Especializadas, Acompanhamento de Comissionamentos, Testes e Pré-Operação / Estudo e Coleta de Dados da Implantação do Projeto / Plano de Segurança e Saúde do Trabalho | C15: ='Mao de Obra'!C32 -> 22990974.66
A16: 1.2 | B16: Planejamento de Ações e Marcos Estratégicos | C16: ='Mao de Obra'!C58:D58 -> 1894203.76
A17: 1.3 | B17: Plano de Comunicação Social | C17: ='Mao de Obra'!C79 -> 345378.34
A18: 1.4 | B18: Estratégias de Oferta e Demanda | C18: ='Mao de Obra'!C100 -> 2253906.15
A19: 1.5 | B19: Estudos e Simulações Elétricas - Incluindo Automação Elétrica e de Processo | C19: ='Mao de Obra'!C122 -> 293879.29
A20: 1.6 | B20: Gestão de Ativos Patrimoniais | C20: ='Mao de Obra'!C143 -> 2686797.24
A21: 1.7 | B21: Apoio Técnico-Administrativo | C21: ='Mao de Obra'!C170 -> 7459667.47
A22: 2. | B22: Outras Despesas (Incluindo Despesas Indiretas) | C22: =SUM(C23:C32) -> 6975193.086
A23: 2.1 | B23: Mobilização da Equipe (pagamento no primeiro mês do contrato) | C23: =Mobilizacao_Desmobilizacao!I24 -> 47189.25
A24: 2.2 | B24: Desmobilização (pagamento no último mês do contrato) | C24: =Mobilizacao_Desmobilizacao!I37 -> 66711.47
A25: 2.3 | B25: Imóveis (Instalação da Equipe) | C25: ='Outras Despesas (Adm_Manut)'!K13 -> 540012.3
A26: 2.4 | B26: Mobiliário | C26: ='Outras Despesas (Adm_Manut)'!K18 -> 349939.72
A27: 2.5 | B27: Manutenção | C27: ='Outras Despesas (Adm_Manut)'!K23 -> 507168.17
A28: 2.6 | B28: Veículos | C28: ='Outras Despesas (Adm_Manut)'!K36 -> 2287213.42
A29: 2.7 | B29: Equipamentos Diversos | C29: ='Outras Despesas (Adm_Manut)'!K41 -> 47681.8556
A30: 2.8 | B30: EPI | C30: ='Outras Despesas (Adm_Manut)'!K43 -> 153467.98
A31: 2.9 | B31: Serviços Gráficos | C31: ='Outras Despesas (Adm_Manut)'!K50 -> 17390.68
A32: 2.10 | B32: Viagens/Diárias (Pagos por Demanda) | C32: ='Outras Despesas (Adm_Manut)'!K47 -> 2958418.24
A34: Total Geral (R$): | C34: =C14+C22 -> 44900000
A36: NOME DO INFORMANTE: | C36: QUALIFICAÇÃO:
A37: MARCIO TAGLIARI | C37: REPRESENTANTE LEGAL
A38: ASSINATURA: | C38: DATA:
C39: 2019-02-18
A40: OBSERVAÇÃO:

Sheet Mao de Obra
A1: Ministério da Integração Nacional - MI
A2: Companhia de Desenvolvimento dos Vales do São Francisco e do Parnaíba
A5: CONTRATAÇÃO DOS SERVIÇOS TÉCNICOS ESPECIALIZADOS DE APOIO ÀS ATIVIDADES DA GESTÃO DO PROJETO DE INTEGRAÇÃO DO RIO SÃO FRANCISCO COM AS BACIAS HIDROGRÁFICAS DO NORDESTE SETENTRIONAL – PISF
A10: PLANILHA DE PREÇOS POR PRODUTO
A12: 1 | B12: Apoio a Gestão e Atividades Técnicas Especializadas, Acompanhamento de Comissionamentos, Testes e Pré-operação / Estudo e Coleta de Dados da Implantação do Projeto / Plano de Segurança e Saúde do Trabalho
A15: CUSTOS DIRETOS
A16: MÃO DE OBRA | C16: =C17+C21+C24 -> 18185446.62
A17: A | B17: EQUIPE | C17: =SUM(C18:C20) -> 10249905.72
A18: A1 | B18: Com Vínculo | C18: ='Mão de Obra (Detalhamento)'!K42 -> 8212449.84
A19: A2 | B19: Consultoria | C19: ='Mão de Obra (Detalhamento)'!K43 -> 87000
A20: A3 | B20: Outros Custos (PERICULOSIDADE) | C20: ='Mão de Obra (Detalhamento)'!L44 -> 1950455.88
A21: B | B21: ENCARGOS SOCIAIS | C21: =C22+C23 -> 7362124.9
A22: B1 | B22: 72,27% INCIDENTE SOBRE O ITEM A1 + A3 | C22: ='Mão de Obra (Detalhamento)'!M42 -> 7344724.9
A23: B2 | B23: 20,00% INCIDENTE SOBRE O ITEM A2 | C23: ='Mão de Obra (Detalhamento)'!M43 -> 17400
A24: C | B24: AUXÍLIO ALIMENTAÇÃO | C24: =C25 -> 573416
A25: C1 | B25: Auxílio Alimentação Mensal (Valor Total) | C25: ='Alimentação (Detalhamento)'!G48 -> 573416
A26: CUSTOS INDIRETOS
A27: D | B27: CUSTO DE ADMINISTRAÇÃO (TAXA DE 8% DO ITEM 'A') | C27: =TRUNC(C17*'Custo Adminstração (Detalham)'!C22,2) -> 819992.45
A28: E | B28: REMUNERAÇÃO DE ESCRITÓRIO (TAXA DE 5% DOS ITENS (A + B + C + D) | C28: =TRUNC((C17+C21+C24+C27)*0.05,2) -> 950271.95
A29: F | B29: DESPESAS FISCAIS (15,21% DOS ITENS A + B + C + D + E) | C29: =TRUNC((C17+C21+C24+C27+C28)*'Despesas Fiscais'!D15/100,2) -> 3035263.64
A30: CUSTOS INDIRETOS - Total (R$): | C30: =SUM(C27:C29) -> 4805528.04
A32: PREÇO TOTAL DO PRODUTO 01 (R$): | C32: =C16+C30 -> 22990974.66
A35: 2 | B35: Planejamento de Ações e Marcos Estratégicos
A36: CUSTOS DIRETOS
C37: Mensal | D37: Demanda
A38: MÃO DE OBRA | C38: =C39+C44+C48 -> 705829.4 | D38: =D39+D44+D48 -> 798380.52
A39: A | B39: EQUIPE | C39: =SUM(C40:C43) -> 396988 | D39: =SUM(D40:D43) -> 373380.84
A40: A1 | B40: Com Vínculo - Mensalista | C40: ='Mão de Obra (Detalhamento)'!K56 -> 396988 | D40: 0
A41: A2 | B41: Com Vínculo - Horista | C41: 0 | D41: ='Mão de Obra (Detalhamento)'!K57 -> 373380.84
A42: A3 | B42: Consultoria | C42: ='Mão de Obra (Detalhamento)'!K58 -> 0 | D42: ='Mão de Obra (Detalhamento)'!K58 -> 0
A43: A4 | B43: Outros Custos (PERICULOSIDADE) | C43: ='Mão de Obra (Detalhamento)'!L56 -> 0 | D43: ='Mão de Obra (Detalhamento)'!K58 -> 0
A44: B | B44: ENCARGOS SOCIAIS | C44: =SUM(C45:C47) -> 288689.4 | D44: =SUM(D45:D47) -> 424999.68
A45: B1 | B45: 72,72% INCIDENTE SOBRE O ITEM A1 + A4 | C45: ='Mão de Obra (Detalhamento)'!M56 -> 288689.4 | D45: =TRUNC(D40*'Mão de Obra (Detalhamento)'!H160,2) -> 0
A46: B2 | B46: 113,83% INCIDENTE SOBRE O ITEM A2 | C46: =TRUNC(C41*'Mão de Obra (Detalhamento)'!F160,2) -> 0 | D46: ='Mão de Obra (Detalhamento)'!M57 -> 424999.68
A47: B3 | B47: 20,00% INCIDENTE SOBRE O ITEM A3 | C47: =TRUNC(C42*'Mão de Obra (Detalhamento)'!J160,2) -> 0 | D47: =TRUNC(D42*'Mão de Obra (Detalhamento)'!J160,2) -> 0
A48: C | B48: AUXÍLIO ALIMENTAÇÃO | C48: =C49 -> 20152 | D48: =D49 -> 0
A49: C1 | B49: Auxílio Alimentação Mensal (Valor Total) | C49: ='Alimentação (Detalhamento)'!G63 -> 20152 | D49: 0
A50: CUSTOS INDIRETOS
C51: Mensal | D51: Demanda
A52: D | B52: CUSTO DE ADMINISTRAÇÃO (TAXA DE 8% DO ITEM 'A') | C52: =TRUNC(C39*'Custo Adminstração (Detalham)'!C22,2) -> 31759.04 | D52: =TRUNC(D39*'Custo Adminstração (Detalham)'!C22,2) -> 29870.46
A53: E | B53: REMUNERAÇÃO DE ESCRITÓRIO (TAXA DE 5% DOS ITENS (A + B + C + D) | C53: =TRUNC((C39+C44+C48+C52)*0.05,2) -> 36879.42 | D53: =TRUNC((D39+D44+D48+D52)*0.05,2) -> 41412.54
A54: F | B54: DESPESAS FISCAIS (15,21% DOS ITENS A + B + C + D + E) | C54: =TRUNC((C39+C44+C48+C52+C53)*'Despesas Fiscais'!D15/100,2) -> 117796.56 | D54: =TRUNC((D39+D44+D48+D52+D53)*'Despesas Fiscais'!D15/100,2) -> 132275.82
A55: CUSTOS INDIRETOS - Total (R$): | C55: =SUM(C52:C54) -> 186435.02 | D55: =SUM(D52:D54) -> 203558.82
A57: PREÇO TOTAL DO PRODUTO 02 (R$): | C57: =C38+C55 -> 892264.42 | D57: =D38+D55 -> 1001939.34
A58: PREÇO TOTAL DO PRODUTO 02 (R$): | C58: =C57+D57 -> 1894203.76
A61: 3. | B61: Plano de Comunicação Social
A62: CUSTOS DIRETOS
A63: MÃO DE OBRA | C63: =C64+C68+C71 -> 273232.59
A64: A | B64: EQUIPE | C64: =SUM(C65:C67) -> 153420.96
A65: A1 | B65: Com Vínculo | C65: ='Mão de Obra (Detalhamento)'!K71 -> 153420.96
A66: A2 | B66: Consultoria | C66: ='Mão de Obra (Detalhamento)'!K72 -> 0
A67: A3 | B67: Outros Custos (PERICULOSIDADE) | C67: ='Mão de Obra (Detalhamento)'!L73 -> 0
A68: B | B68: ENCARGOS SOCIAIS | C68: =C69+C70 -> 111567.63
A69: B1 | B69: 72,72% INCIDENTE SOBRE O ITEM A1 + A3 | C69: ='Mão de Obra (Detalhamento)'!M71 -> 111567.63
A70: B2 | B70: 20,00% INCIDENTE SOBRE O ITEM A2 | C70: ='Mão de Obra (Detalhamento)'!M72 -> 0
A71: C | B71: AUXÍLIO ALIMENTAÇÃO | C71: =C72 -> 8244
A72: C1 | B72: Auxílio Alimentação Mensal (Valor Total) | C72: ='Alimentação (Detalhamento)'!G76 -> 8244
A73: CUSTOS INDIRETOS
A74: D | B74: CUSTO DE ADMINISTRAÇÃO (TAXA DE 8% DO ITEM 'A') | C74: =TRUNC(C64*'Custo Adminstração (Detalham)'!C22,2) -> 12273.67
A75: E | B75: REMUNERAÇÃO DE ESCRITÓRIO (TAXA DE 5% DOS ITENS (A + B + C + D) | C75: =TRUNC((C63+C74)*0.05,2) -> 14275.31
A76: F | B76: DESPESAS FISCAIS (15,21% DOS ITENS A + B + C + D + E) | C76: =TRUNC((C64+C68+C71+C74+C75)*'Despesas Fiscais'!D15/100,2) -> 45596.77
A77: CUSTOS INDIRETOS - Total (R$): | C77: =SUM(C74:C76) -> 72145.75
A79: PREÇO TOTAL DO PRODUTO 03 (R$): | C79: =C63+C77 -> 345378.34
A82: 4. | B82: Estratégias de Oferta e Demanda
A83: CUSTOS DIRETOS
A84: MÃO DE OBRA | C84: =C85+C89+C92 -> 1779944.4
A85: A | B85: EQUIPE | C85: =SUM(C86:C88) -> 1040527.68
A86: A1 | B86: Com Vínculo | C86: ='Mão de Obra (Detalhamento)'!K86 -> 913992
A87: A2 | B87: Consultoria | C87: ='Mão de Obra (Detalhamento)'!K87 -> 126535.68
A88: A3 | B88: Outros Custos (PERICULOSIDADE) | C88: ='Mão de Obra (Detalhamento)'!L88 -> 0
A89: B | B89: ENCARGOS SOCIAIS | C89: =C90+C91 -> 689952.72
A90: B1 | B90: 72,72% INCIDENTE SOBRE O ITEM A1 + A3 | C90: ='Mão de Obra (Detalhamento)'!M86 -> 664654.8
A91: B2 | B91: 20,00% INCIDENTE SOBRE O ITEM A2 | C91: ='Mão de Obra (Detalhamento)'!M87 -> 25297.92
A92: C | B92: AUXÍLIO ALIMENTAÇÃO | C92: =C93 -> 49464
A93: C1 | B93: Auxílio Alimentação Mensal (Valor Total) | C93: ='Alimentação (Detalhamento)'!G91 -> 49464
A94: CUSTOS INDIRETOS
A95: D | B95: CUSTO DE ADMINISTRAÇÃO (TAXA DE 8% DO ITEM 'A') | C95: =TRUNC(C85*'Custo Adminstração (Detalham)'!C22,2) -> 83242.21
A96: E | B96: REMUNERAÇÃO DE ESCRITÓRIO (TAXA DE 5% DOS ITENS (A + B + C + D) | C96: =TRUNC((C84+C95)*0.05,2) -> 93159.33
A97: F | B97: DESPESAS FISCAIS (15,21% DOS ITENS A + B + C + D + E) | C97: =TRUNC((C85+C89+C92+C95+C96)*'Despesas Fiscais'!D15/100,2) -> 297560.21
A98: CUSTOS INDIRETOS - Total (R$): | C98: =SUM(C95:C97) -> 473961.75
A100: PREÇO TOTAL DO PRODUTO 04 (R$): | C100: =C84+C98 -> 2253906.15
A104: 5. | B104: Estudos e Simulações Elétricas
A105: CUSTOS DIRETOS
A106: MÃO DE OBRA | C106: =C107+C111+C114 -> 227750.4
A107: A | B107: EQUIPE | C107: =SUM(C108:C110) -> 189803.52
A108: A1 | B108: Com Vínculo | C108: ='Mão de Obra (Detalhamento)'!K97 -> 0
A109: A2 | B109: Consultoria | C109: ='Mão de Obra (Detalhamento)'!K98 -> 189803.52
A110: A3 | B110: Outros Custos (PERICULOSIDADE) | C110: ='Mão de Obra (Detalhamento)'!L99 -> 0
A111: B | B111: ENCARGOS SOCIAIS | C111: =C112+C113 -> 37946.88
A112: B1 | B112: 72,27% INCIDENTE SOBRE O ITEM A1 + A3 | C112: ='Mão de Obra (Detalhamento)'!M97 -> 0
A113: B2 | B113: 20,00% INCIDENTE SOBRE O ITEM A2 | C113: ='Mão de Obra (Detalhamento)'!M98 -> 37946.88
A114: C | B114: AUXÍLIO ALIMENTAÇÃO | C114: =C115 -> 0
A115: C1 | B115: Auxílio Alimentação Mensal (Valor Total) | C115: ='Alimentação (Detalhamento)'!G102 -> 0
A116: CUSTOS INDIRETOS
A117: D | B117: CUSTO DE ADMINISTRAÇÃO (TAXA DE 8% DO ITEM 'A') | C117: =TRUNC(C107*'Custo Adminstração (Detalham)'!C22,2) -> 15184.28
A118: E | B118: REMUNERAÇÃO DE ESCRITÓRIO (TAXA DE 5% DOS ITENS (A + B + C + D) | C118: =TRUNC((C106+C117)*0.05,2) -> 12146.73
A119: F | B119: DESPESAS FISCAIS (15,21% DOS ITENS A + B + C + D + E) | C119: =TRUNC((C107+C111+C114+C117+C118)*'Despesas Fiscais'!D15/100,2) -> 38797.88
A120: CUSTOS INDIRETOS - Total (R$): | C120: =SUM(C117:C119) -> 66128.89
A122: PREÇO TOTAL DO PRODUTO 05 (R$): | C122: =C106+C120 -> 293879.29
A125: 6. | B125: Gestão de Ativos Patrimoniais
A126: CUSTOS DIRETOS
A127: MÃO DE OBRA | C127: =C128+C132+C135 -> 2127296.16
A128: A | B128: EQUIPE | C128: =SUM(C129:C131) -> 1171736.64
A129: A1 | B129: Com Vínculo | C129: ='Mão de Obra (Detalhamento)'!K111 -> 1128240
A130: A2 | B130: Consultoria | C130: ='Mão de Obra (Detalhamento)'!K112 -> 43496.64
A131: A3 | B131: Outros Custos (PERICULOSIDADE) | C131: ='Mão de Obra (Detalhamento)'!L113 -> 0
A132: B | B132: ENCARGOS SOCIAIS | C132: =C133+C134 -> 829151.52
A133: B1 | B133: 72,72% INCIDENTE SOBRE O ITEM A1 + A3 | C133: ='Mão de Obra (Detalhamento)'!M111 -> 820455.36
A134: B2 | B134: 20,00% INCIDENTE SOBRE O ITEM A2 | C134: ='Mão de Obra (Detalhamento)'!M112 -> 8696.16
A135: C | B135: AUXÍLIO ALIMENTAÇÃO | C135: =C136 -> 126408
A136: C1 | B136: Auxílio Alimentação Mensal (Valor Total) | C136: ='Alimentação (Detalhamento)'!G116 -> 126408
A137: CUSTOS INDIRETOS
A138: D | B138: CUSTO DE ADMINISTRAÇÃO (TAXA DE 8% DO ITEM 'A') | C138: =TRUNC(C128*'Custo Adminstração (Detalham)'!C22,2) -> 93738.93
A139: E | B139: REMUNERAÇÃO DE ESCRITÓRIO (TAXA DE 5% DOS ITENS (A + B + C + D) | C139: =TRUNC((C127+C138)*0.05,2) -> 111051.75
A140: F | B140: DESPESAS FISCAIS (15,21% DOS ITENS A + B + C + D + E) | C140: =TRUNC((C128+C132+C135+C138+C139)*'Despesas Fiscais'!D15/100,2) -> 354710.4
A141: CUSTOS INDIRETOS - Total (R$): | C141: =SUM(C138:C140) -> 559501.08
A143: PREÇO TOTAL DO PRODUTO 06 (R$): | C143: =C127+C141 -> 2686797.24
A147: 7. | B147: Apoio Técnico-Administrativo
A148: CUSTOS DIRETOS
A149: MÃO DE OBRA | C149: =C150+C157+C162 -> 5906206.98
A150: A | B150: EQUIPE | C150: =SUM(C151:C154) -> 3253885.92
A151: A1 | B151: Com Vínculo - Mensalista Campo | C151: ='Mão de Obra (Detalhamento)'!K149 -> 621633.6
A152: A2 | B152: Com Vínculo - Mensalista Sede | C152: ='Mão de Obra (Detalhamento)'!K150 -> 2612898.72
A153: A3 | B153: Com Vínculo - Horista Campo | C153: ='Mão de Obra (Detalhamento)'!K151 -> 19353.6
A154: A4 | B154: Consultoria | C154: ='Mão de Obra (Detalhamento)'!K152 -> 0
A155: A5 | B155: Outros Custos (PERICULOSIDADE - Campo) | C155: ='Mão de Obra (Detalhamento)'!L149 -> 0
A156: A6 | B156: Outros Custos (PERICULOSIDADE - Sede) | C156: ='Mão de Obra (Detalhamento)'!L150 -> 0
A157: B | B157: ENCARGOS SOCIAIS | C157: =SUM(C158:C161) -> 2372025.06
A158: B1 | B158: 72,27% INCIDENTE SOBRE O ITEM A1 + A5 | C158: ='Mão de Obra (Detalhamento)'!M149 -> 449254.08
A159: B2 | B159: 72,72% INCIDENTE SOBRE O ITEM A2 + A6 | C159: ='Mão de Obra (Detalhamento)'!M150 -> 1900099.62
A160: B3 | B160: 117,18% INCIDENTE SOBRE O ITEM A3 | C160: ='Mão de Obra (Detalhamento)'!M151 -> 22671.36
A161: B4 | B161: 20,00% INCIDENTE SOBRE O ITEM A4 | C161: ='Mão de Obra (Detalhamento)'!M152 -> 0
A162: C | B162: AUXÍLIO ALIMENTAÇÃO | C162: =C163 -> 280296
A163: C1 | B163: Auxílio Alimentação Mensal (Valor Total) | C163: ='Alimentação (Detalhamento)'!G152 -> 280296
A164: CUSTOS INDIRETOS
A165: D | B165: CUSTO DE ADMINISTRAÇÃO (TAXA DE 8% DO ITEM 'A') | C165: =TRUNC(C150*'Custo Adminstração (Detalham)'!C22,2) -> 260310.87
A166: E | B166: REMUNERAÇÃO DE ESCRITÓRIO (TAXA DE 5% DOS ITENS (A + B + C + D) | C166: =TRUNC((C150+C157+C162+C165)*0.05,2) -> 308325.89
A167: F | B167: DESPESAS FISCAIS (15,21% DOS ITENS A + B + C + D + E) | C167: =TRUNC((C150+C157+C162+C165+C166)*'Despesas Fiscais'!D15/100,2) -> 984823.73
A168: CUSTOS INDIRETOS - Total (R$): | C168: =SUM(C165:C167) -> 1553460.49
A170: PREÇO TOTAL DO PRODUTO 07 (R$): | C170: =C149+C168 -> 7459667.47
A174: NOME DO INFORMANTE: | C174: QUALIFICAÇÃO:
A175: MARCIO TAGLIARI | C175: REPRESENTANTE LEGAL
A176: ASSINATURA: | C176: DATA:
C177: 2019-02-18
A178: OBSERVAÇÃO:
A179: 1. | B179: Custo de Administração: Taxa de 8% incindindo sobre Salários, Encargos e Auxílio Alimentação
A180: 2. | B180: Remuneração de Escritório: Taxa de 5% incindindo sobre Salários, Encargos, Auxílio Alimentação e Custo de Administração
A181: 3. | B181: Despesas Fiscais: Taxa de 15,21% incindindo sobre Salários, Encargos, Auxílio Alimentação, Custo de Administração e Remuneração de Escritório

Sheet Mão de Obra (Detalhamento)
A1: Ministério da Integração Nacional - MI
A2: Companhia de Desenvolvimento dos Vales do São Francisco e do Parnaíba
A4: CONTRATAÇÃO DOS SERVIÇOS TÉCNICOS ESPECIALIZADOS DE APOIO ÀS ATIVIDADES DA GESTÃO DO PROJETO DE INTEGRAÇÃO DO RIO SÃO FRANCISCO COM AS BACIAS HIDROGRÁFICAS DO NORDESTE SETENTRIONAL – PISF
A7: MÃO DE OBRA
A10: ITEM | B10: DISCRIMINAÇÃO | C10: CODIGO | D10: UND | E10: QTD | F10: Prazo (Mês) | G10: SALÁRIOS MENSAL (R$) | K10: SALÁRIOS TOTAL (R$)
G11: SEM Encargo | H11: Periculosidade (30%) | I11: Encargos Sociais | J11: COM Encargo | K11: SEM Encargo | L11: Periculosidade (30%) | M11: Encargos Sociais | N11: COM Encargo
A13: 1. | B13: Apoio a Gestão e Atividades Técnicas Especializadas, Acompanhamento de Comissionamentos, Recebimento, Testes e Pré-Operação / Estudo e Coleta de Dados da Implantação do Projeto / Plano de Segurança e Saúde do Trabalho / Plano de segurança do PISF
A14: 1.1 | B14: Gerente de Contrato - Engenheiro Sênior | C14: P0 | D14: Und/Mês | E14: 1 | F14: 18 | G14: ='Base de Preço (Salários)'!D13 -> 11450 | H14: =TRUNC(G14*$D$160,2) -> 3435 | I14: =TRUNC((G14+H14)*$I$160,2) -> 10757.38 | J14: =SUM(G14:I14) -> 25642.38 | K14: =TRUNC(E14*F14*G14,2) -> 206100 | L14: =TRUNC(E14*F14*H14,2) -> 61830 | M14: =TRUNC(E14*F14*I14,2) -> 193632.84 | N14: =SUM(K14:M14) -> 461562.84
A15: 1.2 | B15: Consultor em Segurança Pública | C15: C | D15: Und/Mês | E15: 1 | F15: 6 | G15: ='Base de Preço (Salários)'!D12 -> 14500 | H15: =TRUNC(G15*0,2) -> 0 | I15: =TRUNC((G15+H15)*$J$160,2) -> 2900 | J15: =SUM(G15:I15) -> 17400 | K15: =TRUNC(E15*F15*G15,2) -> 87000 | L15: =TRUNC(E15*F15*H15,2) -> 0 | M15: =TRUNC(E15*F15*I15,2) -> 17400 | N15: =SUM(K15:M15) -> 104400
A16: 1.3 | B16: Profissional em Planejamento de Segurança Pública | C16: P1 | D16: Und/Mês | E16: 2 | F16: 6 | G16: ='Base de Preço (Salários)'!D14 -> 9600 | H16: =TRUNC(G16*0,2) -> 0 | I16: =TRUNC((G16+H16)*$I$160,2) -> 6937.92 | J16: 16537.92 | K16: 115200 | L16: 0 | M16: 83255.04 | N16: 198455.04
A17: 1.4 | B17: Eng. Pleno - Civil | C17: P1 | D17: Und/Mês | E17: 4 | F17: 18 | G17: ='Base de Preço (Salários)'!D14 -> 9600 | H17: =TRUNC(G17*$D$160,2) -> 2880 | I17: 9019.29 | J17: 21499.29 | K17: 691200 | L17: 207360 | M17: 649388.88 | N17: 1547948.88
A18: 1.5 | B18: Eng. Pleno - Mecânica | C18: P1 | D18: Und/Mês | E18: 4 | F18: 18 | G18: ='Base de Preço (Salários)'!D14 -> 9600 | H18: 2880 | I18: 9019.29 | J18: 21499.29 | K18: 691200 | L18: 207360 | M18: 649388.88 | N18: 1547948.88
A19: 1.6 | B19: Eng. Pleno - Eletricista | C19: P1 | D19: Und/Mês | E19: 4 | F19: 18 | G19: ='Base de Preço (Salários)'!D14 -> 9600 | H19: 2880 | I19: 9019.29 | J19: 21499.29 | K19: 691200 | L19: 207360 | M19: 649388.88 | N19: 1547948.88
A20: 1.7 | B20: Eng. Pleno - Telecomunicações | C20: P1 | D20: Und/Mês | E20: 2 | F20: 18 | G20: ='Base de Preço (Salários)'!D14 -> 9600 | H20: 2880 | I20: 9019.29 | J20: 21499.29 | K20: 345600 | L20: 103680 | M20: 324694.44 | N20: 773974.44
A21: 1.8 | B21: Eng. Pleno - Automação | C21: P1 | D21: Und/Mês | E21: 2 | F21: 18 | G21: ='Base de Preço (Salários)'!D14 -> 9600 | H21: 2880 | I21: 9019.29 | J21: 21499.29 | K21: 345600 | L21: 103680 | M21: 324694.44 | N21: 773974.44
A22: 1.9 | B22: Eng. Pleno - Ambiental | C22: P1 | D22: Und/Mês | E22: 2 | F22: 18 | G22: ='Base de Preço (Salários)'!D14 -> 9600 | H22: 2880 | I22: 9019.29 | J22: 21499.29 | K22: 345600 | L22: 103680 | M22: 324694.44 | N22: 773974.44
A23: 1.10 | B23: Eng. Médio - Engenheiro de Apoio de Campo | C23: P2 | D23: Und/Mês | E23: 6 | F23: 18 | G23: ='Base de Preço (Salários)'!D15 -> 9100 | H23: 2730 | I23: 8549.54 | J23: 20379.54 | K23: 982800 | L23: 294840 | M23: 923350.32 | N23: 2200990.32
A24: 1.11 | B24: Técnico Sênior Campo | C24: T0 | D24: Und/Mês | E24: 24 | F24: 18 | G24: ='Base de Preço (Salários)'!D19 -> 3960 | H24: 1188 | I24: 3720.45 | J24: 8868.45 | K24: 1710720 | L24: 513216 | M24: 1607234.4 | N24: 3831170.4
A25: 1.12 | B25: Profissional em TI - Pleno | C25: P1 | D25: Und/Mês | E25: 1 | F25: 18 | G25: ='Base de Preço (Salários)'!D14 -> 9600 | H25: =TRUNC(G25*0,2) -> 0 | I25: 6937.92 | J25: 16537.92 | K25: 172800 | L25: 0 | M25: 124882.56 | N25: 297682.56
A26: 1.13 | B26: Profissional em TI - Nível Médio | C26: T0 | D26: Und/Mês | E26: 1 | F26: 18 | G26: ='Base de Preço (Salários)'!D19 -> 3960 | H26: =TRUNC(G26*0,2) -> 0 | I26: 2861.89 | J26: 6821.89 | K26: 71280 | L26: 0 | M26: 51514.02 | N26: 122794.02
A27: 1.14 | B27: Eng. Médio - Civil | C27: P2 | D27: Und/Mês | E27: 2 | F27: 3 | G27: ='Base de Preço (Salários)'!D15 -> 9100 | H27: 2730 | I27: 8549.54 | J27: 20379.54 | K27: 54600 | L27: 16380 | M27: 51297.24 | N27: 122277.24
A28: 1.15 | B28: Eng. Médio - Mecânica | C28: P2 | D28: Und/Mês | E28: 2 | F28: 3 | G28: ='Base de Preço (Salários)'!D15 -> 9100 | H28: 2730 | I28: 8549.54 | J28: 20379.54 | K28: 54600 | L28: 16380 | M28: 51297.24 | N28: 122277.24
A29: 1.16 | B29: Eng. Médio - Eletricista | C29: P2 | D29: Und/Mês | E29: 2 | F29: 3 | G29: ='Base de Preço (Salários)'!D15 -> 9100 | H29: 2730 | I29: 8549.54 | J29: 20379.54 | K29: 54600 | L29: 16380 | M29: 51297.24 | N29: 122277.24
A30: 1.17 | B30: Engenheiro - Trainee | C30: P4 | D30: Und/Mês | E30: 4 | F30: 3 | G30: ='Base de Preço (Salários)'!D17 -> 8108.32 | H30: 2432.49 | I30: 7617.84 | J30: 18158.65 | K30: 97299.84 | L30: 29189.88 | M30: 91414.08 | N30: 217903.8
A31: 1.18 | B31: Técnico Pleno | C31: T1 | D31: Und/Mês | E31: 6 | F31: 3 | G31: ='Base de Preço (Salários)'!D20 -> 3200 | H31: 960 | I31: 3006.43 | J31: 7166.43 | K31: 57600 | L31: 17280 | M31: 54115.74 | N31: 128995.74
A32: 1.19 | B32: Engenheiro Pleno (Engenheiro Segurança do Trabalho) | C32: P1 | D32: Und/Mês | E32: 1 | F32: 4 | G32: ='Base de Preço (Salários)'!D14 -> 9600 | H32: =TRUNC(G32*0,2) -> 0 | I32: 6937.92 | J32: 16537.92 | K32: 38400 | L32: 0 | M32: 27751.68 | N32: 66151.68
A33: 1.20 | B33: Técnico Sênior - Segurança do Trabalho | C33: T0 | D33: Und/Mês | E33: 2 | F33: 18 | G33: ='Base de Preço (Salários)'!D19 -> 3960 | H33: =TRUNC(G33*0,2) -> 0 | I33: 2861.89 | J33: 6821.89 | K33: 142560 | L33: 0 | M33: 103028.04 | N33: 245588.04
A34: 1.21 | B34: Eng. Planejamento (O&M) | C34: P1 | D34: Und/Mês | E34: 1 | F34: 18 | G34: ='Base de Preço (Salários)'!D14 -> 9600 | H34: =TRUNC(G34*0,2) -> 0 | I34: 6937.92 | J34: 16537.92 | K34: 172800 | L34: 0 | M34: 124882.56 | N34: 297682.56
A35: 1.22 | B35: Técnico de Planejamento (O&M) | C35: T1 | D35: Und/Mês | E35: 2 | F35: 18 | G35: ='Base de Preço (Salários)'!D20 -> 3200 | H35: =TRUNC(G35*0,2) -> 0 | I35: 2312.64 | J35: 5512.64 | K35: 115200 | L35: 0 | M35: 83255.04 | N35: 198455.04
A36: 1.23 | B36: Especialista em Planejamento Organizacional, Gerenciamento de Portifólio, Programas, Projetos e Processos (Produto 2) | C36: P3 | D36: Und/Mês | E36: 2 | F36: 15 | G36: ='Base de Preço (Salários)'!D16 -> 8483 | H36: =TRUNC(G36*0,2) -> 0 | I36: 6130.66 | J36: 14613.66 | K36: 254490 | L36: 0 | M36: 183919.8 | N36: 438409.8
A37: 1.24 | B37: Engenheiro Hidráulico (Civil ou Mecânica) | C37: P1 | D37: Und/Mês | E37: 1 | F37: 18 | G37: ='Base de Preço (Salários)'!D14 -> 9600 | H37: 2880 | I37: =TRUNC((G37+H37)*$I$160,2) -> 9019.29 | J37: 21499.29 | K37: 172800 | L37: =TRUNC((E37*F37)*(H37*0.5),2) -> 25920 | M37: =TRUNC(((G37+(H37*0.5))*$I$160)*E37*F37,2) -> 143614.94 | N37: 342334.94
A38: 1.25 | B38: Engenheiro Hidrólogo (Civil) | C38: P1 | D38: Und/Mês | E38: 1 | F38: 18 | G38: ='Base de Preço (Salários)'!D14 -> 9600 | H38: 2880 | I38: 9019.29 | J38: 21499.29 | K38: 172800 | L38: =TRUNC((E38*F38)*(H38*0.5),2) -> 25920 | M38: =TRUNC(((G38+(H38*0.5))*$I$160)*E38*F38,2) -> 143614.94 | N38: 342334.94
A39: 1.26 | B39: Geólogo | C39: P2 | D39: Und/Mês | E39: 1 | F39: 18 | G39: ='Base de Preço (Salários)'!D15 -> 9100 | H39: =TRUNC(G39*0,2) -> 0 | I39: 6576.57 | J39: 15676.57 | K39: 163800 | L39: 0 | M39: 118378.26 | N39: 282178.26
A40: 1.27 | B40: Topógrafo | C40: TS | D40: Und/Mês | E40: 2 | F40: 18 | G40: ='Base de Preço (Salários)'!D18 -> 4600 | H40: =TRUNC(G40*0,2) -> 0 | I40: 3324.42 | J40: 7924.42 | K40: 165600 | L40: 0 | M40: 119679.12 | N40: 285279.12
A41: 1.28 | B41: Auxiliar de Topografia | C41: T3 | D41: Und/Mês | E41: 4 | F41: 18 | G41: ='Base de Preço (Salários)'!D22 -> 1750 | H41: =TRUNC(G41*0,2) -> 0 | I41: 1264.72 | J41: 3014.72 | K41: 126000 | L41: 0 | M41: 91059.84 | N41: 217059.84
A42: Total Geral - Equipe com Vínculo (R$): | K42: =K14+SUM(K16:K41) -> 8212449.84 | L42: =SUM(L14:L41)-L15 -> 1950455.88 | M42: =SUM(M14:M41)-M15 -> 7344724.9 | N42: 17507630.62
A43: Total Geral - Equipe sem Vínculo - CONSULTORIA (R$): | K43: =K15 -> 87000 | L43: =L15 -> 0 | M43: 17400 | N43: 104400
A44: TOTAL GERAL - Salário Equipe PRODUTO 01 (R$): | K44: =K42+K43 -> 8299449.84 | L44: =L42+L43 -> 1950455.88 | M44: 7362124.9 | N44: 17612030.62
A46: ITEM | B46: DISCRIMINAÇÃO | C46: CODIGO | D46: UND | E46: QTD | F46: Prazo (Mês) | G46: SALÁRIOS MENSAL (R$) | K46: SALÁRIOS TOTAL (R$)
G47: SEM Encargo | H47: Periculosidade (30%) | I47: Encargos Sociais | J47: COM Encargo | K47: SEM Encargo | L47: Periculosidade (30%) | M47: Encargos Sociais | N47: COM Encargo
A49: 2 | B49: Planejamento de Ações e Marcos Estratégicos
A50: 2.1 | B50: Especialista em Planejamento Organizacional, Gerenciamento de Portifólio, Programas, Projetos e Processos (Etapa 1 / 2 / 3) | C50: P0 | D50: Und/Mês | E50: 1 | F50: 1 | G50: ='Base de Preço (Salários)'!D37 -> 11450 | H50: =TRUNC(G50*0,2) -> 0 | I50: =TRUNC((G50+H50)*$H$160,2) -> 8326.44 | J50: =SUM(G50:I50) -> 19776.44 | K50: =TRUNC(E50*F50*G50,2) -> 11450 | L50: =TRUNC(E50*F50*H50,2) -> 0 | M50: =TRUNC(E50*F50*I50,2) -> 8326.44 | N50: =SUM(K50:M50) -> 19776.44
A51: 2.2 | B51: Especialista em Planejamento Organizacional - Plano de Ação (Etapa 6) | C51: P3 | D51: Und/Mês | E51: 2 | F51: 18 | G51: ='Base de Preço (Salários)'!D40 -> 8483 | H51: =TRUNC(G51*0,2) -> 0 | I51: =TRUNC((G51+H51)*$H$160,2) -> 6168.83 | J51: 14651.83 | K51: =TRUNC(E51*F51*G51,2) -> 305388 | L51: =TRUNC(E51*F51*H51,2) -> 0 | M51: =TRUNC(E51*F51*I51,2) -> 222077.88 | N51: 527465.88
A52: 2.3 | B52: Especialista em Soluções Microsoft - ATIVIDADE POR DEMANDA (Etapa 4) | C52: P1 | D52: h | E52: 312 | F52: 7 | G52: ='Base de Preço (Salários)'!C38 -> 54.54 | H52: 0 | I52: =TRUNC((G52+H52)*$F$160,2) -> 62.08 | J52: 116.62 | K52: 119115.36 | L52: 0 | M52: 135582.72 | N52: 254698.08
A53: 2.4 | B53: Especialista em Soluções Microsoft - ATIVIDADE POR DEMANDA (Etapa 5) | C53: P1 | D53: h | E53: 444 | F53: 7 | G53: ='Base de Preço (Salários)'!C38 -> 54.54 | H53: 0 | I53: =TRUNC((G53+H53)*$F$160,2) -> 62.08 | J53: 116.62 | K53: 169510.32 | L53: 0 | M53: 192944.64 | N53: 362454.96
A54: 2.5 | B54: Especialista em Soluções de Tecnologia da Informação (Etapa 7) | C54: P0 | D54: Und/Mês | E54: 1 | F54: 7 | G54: ='Base de Preço (Salários)'!D37 -> 11450 | H54: 0 | I54: 8326.44 | J54: 19776.44 | K54: 80150 | L54: 0 | M54: 58285.08 | N54: 138435.08
A55: 2.6 | B55: Especialista em Soluções de Tecnologia da Informação - ATIVIDADE POR DEMANDA (Etapa 7) | C55: P1 | D55: h | E55: 222 | F55: 7 | G55: ='Base de Preço (Salários)'!C38 -> 54.54 | H55: 0 | I55: =TRUNC((G55+H55)*$F$160,2) -> 62.08 | J55: 116.62 | K55: 84755.16 | L55: 0 | M55: 96472.32 | N55: 181227.48
A56: Total Geral - Equipe com Vínculo Mensalista (R$): | K56: =K50+K51+K54 -> 396988 | L56: =L50+L51+L54 -> 0 | M56: =M50+M51+M54 -> 288689.4 | N56: =N50+N51+N54 -> 685677.4
A57: Total Geral - Equipe com Vínculo Horista (R$): | K57: =K52+K53+K55 -> 373380.84 | L57: =L52+L53+L55 -> 0 | M57: =M52+M53+M55 -> 424999.68 | N57: =N52+N53+N55 -> 798380.52
A58: Total Geral - Equipe sem Vínculo - CONSULTORIA (R$): | K58: 0 | L58: 0 | M58: 0 | N58: 0
A59: TOTAL GERAL - Salário Equipe PRODUTO 02 (R$): | K59: =SUM(K56:K58) -> 770368.84 | L59: =SUM(L56:L58) -> 0 | M59: =SUM(M56:M58) -> 713689.08 | N59: =SUM(N56:N58) -> 1484057.92
A63: ITEM | B63: DISCRIMINAÇÃO | C63: CODIGO | D63: UND | E63: QTD | F63: Prazo (Mês) | G63: SALÁRIOS MENSAL (R$) | K63: SALÁRIOS TOTAL (R$)
G64: SEM Encargo | H64: Periculosidade (30%) | I64: Encargos Sociais | J64: COM Encargo | K64: SEM Encargo | L64: Periculosidade (30%) | M64: Encargos Sociais | N64: COM Encargo
A66: 3. | B66: Plano de Comunicação Social
A67: 3.1 | B67: Gestor em Comunicação (Superior em Comunicação) | C67: P2 | D67: Und/Mês | E67: 1 | F67: 3 | G67: ='Base de Preço (Salários)'!D39 -> 9100 | H67: =TRUNC(G67*0,2) -> 0 | I67: =TRUNC((G67+H67)*$H$160,2) -> 6617.52 | J67: =SUM(G67:I67) -> 15717.52 | K67: =TRUNC(E67*F67*G67,2) -> 27300 | L67: =TRUNC(E67*F67*H67,2) -> 0 | M67: =TRUNC(E67*F67*I67,2) -> 19852.56 | N67: =SUM(K67:M67) -> 47152.56
A68: 3.2 | B68: Jornalista | C68: P3 | D68: Und/Mês | E68: 2 | F68: 3 | G68: ='Base de Preço (Salários)'!D40 -> 8483 | H68: =TRUNC(G68*0,2) -> 0 | I68: =TRUNC((G68+H68)*$H$160,2) -> 6168.83 | J68: 14651.83 | K68: =TRUNC(E68*F68*G68,2) -> 50898 | L68: =TRUNC(E68*F68*H68,2) -> 0 | M68: =TRUNC(E68*F68*I68,2) -> 37012.98 | N68: 87910.98
A69: 3.3 | B69: Publicitário | C69: P3 | D69: Und/Mês | E69: 2 | F69: 3 | G69: ='Base de Preço (Salários)'!D40 -> 8483 | H69: 0 | I69: 6168.83 | J69: 14651.83 | K69: 50898 | L69: 0 | M69: 37012.98 | N69: 87910.98
A70: 3.4 | B70: Revisor (Nivel Superior - Letras) | C70: P4 | D70: Und/Mês | E70: 1 | F70: 3 | G70: ='Base de Preço (Salários)'!D41 -> 8108.32 | H70: 0 | I70: 5896.37 | J70: 14004.69 | K70: 24324.96 | L70: 0 | M70: 17689.11 | N70: 42014.07
A71: Total Geral - Equipe com Vínculo (R$): | K71: =SUM(K67:K70) -> 153420.96 | L71: =SUM(L67:L70) -> 0 | M71: 111567.63 | N71: 264988.59
A72: Total Geral - Equipe sem Vínculo - CONSULTORIA (R$): | K72: 0 | L72: 0 | M72: 0 | N72: 0
A73: TOTAL GERAL - Salário Equipe PRODUTO 03 (R$): | K73: =K71+K72 -> 153420.96 | L73: =L71+L72 -> 0 | M73: 111567.63 | N73: 264988.59
A75: ITEM | B75: DISCRIMINAÇÃO | C75: CODIGO | D75: UND | E75: QTD | F75: Prazo (Mês) | G75: SALÁRIOS MENSAL (R$) | K75: SALÁRIOS TOTAL (R$)
G76: SEM Encargo | H76: Periculosidade (30%) | I76: Encargos Sociais | J76: COM Encargo | K76: SEM Encargo | L76: Periculosidade (30%) | M76: Encargos Sociais | N76: COM Encargo
A78: 4. | B78: Estratégia de Oferta e Demanda
A79: 4.1 | B79: Consultor - Hidrologia | C79: C | D79: h | E79: 64 | F79: 12 | G79: ='Base de Preço (Salários)'!C36 -> 82.38 | H79: =TRUNC(G79*0,2) -> 0 | I79: =TRUNC((G79+H79)*$J$160,2) -> 16.47 | J79: =SUM(G79:I79) -> 98.85 | K79: =TRUNC(E79*F79*G79,2) -> 63267.84 | L79: =TRUNC(E79*F79*H79,2) -> 0 | M79: =TRUNC(E79*F79*I79,2) -> 12648.96 | N79: =SUM(K79:M79) -> 75916.8
A80: 4.2 | B80: Consultor - Hidráulica | C80: C | D80: h | E80: 64 | F80: 12 | G80: ='Base de Preço (Salários)'!C36 -> 82.38 | H80: =TRUNC(G80*0,2) -> 0 | I80: =TRUNC((G80+H80)*$J$160,2) -> 16.47 | J80: 98.85 | K80: =TRUNC(E80*F80*G80,2) -> 63267.84 | L80: =TRUNC(E80*F80*H80,2) -> 0 | M80: =TRUNC(E80*F80*I80,2) -> 12648.96 | N80: 75916.8
A81: 4.3 | B81: Engenheiro Hidráulico (Civil ou Mecânica) | C81: P2 | D81: Und/Mês | E81: 4 | F81: 12 | G81: ='Base de Preço (Salários)'!D39 -> 9100 | H81: 0 | I81: =TRUNC((G81+H81)*$H$160,2) -> 6617.52 | J81: 15717.52 | K81: 436800 | L81: 0 | M81: 317640.96 | N81: =SUM(K81:M81) -> 754440.96
A82: 4.4 | B82: Engenheiro Hidrologia | C82: P2 | D82: Und/Mês | E82: 2 | F82: 12 | G82: ='Base de Preço (Salários)'!D39 -> 9100 | H82: 0 | I82: =TRUNC((G82+H82)*$H$160,2) -> 6617.52 | J82: 15717.52 | K82: 218400 | L82: 0 | M82: 158820.48 | N82: 377220.48
A83: 4.5 | B83: Engenheiro Hidrologia | C83: P3 | D83: Und/Mês | E83: 1 | F83: 12 | G83: ='Base de Preço (Salários)'!D40 -> 8483 | H83: 0 | I83: 6168.83 | J83: 14651.83 | K83: 101796 | L83: 0 | M83: 74025.96 | N83: 175821.96
A84: 4.6 | B84: Engenheiro Hidráulica | C84: P3 | D84: Und/Mês | E84: 1 | F84: 12 | G84: ='Base de Preço (Salários)'!D40 -> 8483 | H84: 0 | I84: 6168.83 | J84: 14651.83 | K84: 101796 | L84: 0 | M84: 74025.96 | N84: 175821.96
A85: 4.7 | B85: Técnico Especializado - Informática | C85: TS | D85: Und/Mês | E85: 1 | F85: 12 | G85: ='Base de Preço (Salários)'!D42 -> 4600 | H85: 0 | I85: 3345.12 | J85: 7945.12 | K85: 55200 | L85: 0 | M85: 40141.44 | N85: 95341.44
A86: Total Geral - Equipe com Vínculo Mensalista (R$): | K86: =SUM(K81:K85) -> 913992 | L86: =SUM(L81:L85) -> 0 | M86: 664654.8 | N86: 1578646.8
A87: Total Geral - Equipe sem Vínculo - CONSULTORIA (R$): | K87: =K79+K80 -> 126535.68 | L87: =L79+L80 -> 0 | M87: 25297.92 | N87: 151833.6
A88: TOTAL GERAL - Salário Equipe PRODUTO 04 (R$): | K88: =K86+K87 -> 1040527.68 | L88: =L86+L87 -> 0 | M88: 689952.72 | N88: 1730480.4
A91: ITEM | B91: DISCRIMINAÇÃO | C91: CODIGO | D91: UND | E91: QTD | F91: Prazo (Mês) | G91: SALÁRIOS MENSAL (R$) | K91: SALÁRIOS TOTAL (R$)
G92: SEM Encargo | H92: Periculosidade (30%) | I92: Encargos Sociais | J92: COM Encargo | K92: SEM Encargo | L92: Periculosidade (30%) | M92: Encargos Sociais | N92: COM Encargo
A94: 5. | B94: Estudos e Simulações Elétricas - ATIVIDADE POR DEMANDA
A95: 5.1 | B95: Consultor - Sistemas Elétricos | C95: C | D95: h | E95: 64 | F95: 18 | G95: ='Base de Preço (Salários)'!C36 -> 82.38 | H95: =TRUNC(G95*0,2) -> 0 | I95: =TRUNC((G95+H95)*$J$160,2) -> 16.47 | J95: =SUM(G95:I95) -> 98.85 | K95: =TRUNC(E95*F95*G95,2) -> 94901.76 | L95: =TRUNC(E95*F95*H95,2) -> 0 | M95: =TRUNC(E95*F95*I95,2) -> 18973.44 | N95: =SUM(K95:M95) -> 113875.2
A96: 5.2 | B96: Consultor - Sistemas de Automação | C96: C | D96: h | E96: 64 | F96: 18 | G96: ='Base de Preço (Salários)'!C36 -> 82.38 | H96: =TRUNC(G96*0,2) -> 0 | I96: =TRUNC((G96+H96)*$J$160,2) -> 16.47 | J96: 98.85 | K96: =TRUNC(E96*F96*G96,2) -> 94901.76 | L96: =TRUNC(E96*F96*H96,2) -> 0 | M96: =TRUNC(E96*F96*I96,2) -> 18973.44 | N96: 113875.2
A97: Total Geral - Equipe com Vínculo (R$): | K97: 0 | L97: 0 | M97: 0 | N97: 0
A98: Total Geral - Equipe sem Vínculo - CONSULTORIA (R$): | K98: =K95+K96 -> 189803.52 | L98: =L95+L96 -> 0 | M98: 37946.88 | N98: 227750.4
A99: TOTAL GERAL - Salário Equipe PRODUTO 05 (R$): | K99: =K97+K98 -> 189803.52 | L99: =L97+L98 -> 0 | M99: 37946.88 | N99: 227750.4
A102: ITEM | B102: DISCRIMINAÇÃO | C102: CODIGO | D102: UND | E102: QTD | F102: Prazo (Mês) | G102: SALÁRIOS MENSAL (R$) | K102: SALÁRIOS TOTAL (R$)
G103: SEM Encargo | H103: Periculosidade (30%) | I103: Encargos Sociais | J103: COM Encargo | K103: SEM Encargo | L103: Periculosidade (30%) | M103: Encargos Sociais | N103: COM Encargo
A105: 6. | B105: Gestão de Ativos Patrimoniais
A106: 6.1 | B106: Consultoria - Gestão de Ativos Patrimoniais | C106: C | D106: h | E106: 44 | F106: 12 | G106: ='Base de Preço (Salários)'!C36 -> 82.38 | H106: =TRUNC(G106*0,2) -> 0 | I106: =TRUNC((G106+H106)*$J$160,2) -> 16.47 | J106: =SUM(G106:I106) -> 98.85 | K106: =TRUNC(E106*F106*G106,2) -> 43496.64 | L106: =TRUNC(E106*F106*H106,2) -> 0 | M106: =TRUNC(E106*F106*I106,2) -> 8696.16 | N106: =SUM(K106:M106) -> 52192.8
A107: 6.2 | B107: Engenheiro Médio | C107: P2 | D107: Und/Mês | E107: 3 | F107: 12 | G107: ='Base de Preço (Salários)'!D39 -> 9100 | H107: =TRUNC(G107*0,2) -> 0 | I107: =TRUNC((G107+H107)*$H$160,2) -> 6617.52 | J107: 15717.52 | K107: =TRUNC(E107*F107*G107,2) -> 327600 | L107: =TRUNC(E107*F107*H107,2) -> 0 | M107: =TRUNC(E107*F107*I107,2) -> 238230.72 | N107: 565830.72
A108: 6.3 | B108: Técnico Sênior | C108: T0 | D108: Und/Mês | E108: 8 | F108: 12 | G108: ='Base de Preço (Salários)'!D43 -> 3960 | H108: 0 | I108: =TRUNC((G108+H108)*$H$160,2) -> 2879.71 | J108: 6839.71 | K108: 380160 | L108: 0 | M108: 276452.16 | N108: =SUM(K108:M108) -> 656612.16
A109: 6.3 | B109: Técnico Pleno | C109: T1 | D109: Und/Mês | E109: 6 | F109: 12 | G109: ='Base de Preço (Salários)'!D44 -> 3200 | H109: 0 | I109: 2327.04 | J109: 5527.04 | K109: 230400 | L109: 0 | M109: 167546.88 | N109: 397946.88
A110: 6.3 | B110: Técnico Junior | C110: T2 | D110: Und/Mês | E110: 6 | F110: 12 | G110: ='Base de Preço (Salários)'!D45 -> 2640 | H110: 0 | I110: 1919.8 | J110: 4559.8 | K110: 190080 | L110: 0 | M110: 138225.6 | N110: 328305.6
A111: Total Geral - Equipe com Vínculo (R$): | K111: =SUM(K107:K110) -> 1128240 | L111: =SUM(L107:L110) -> 0 | M111: 820455.36 | N111: 1948695.36
A112: Total Geral - Equipe sem Vínculo - CONSULTORIA (R$): | K112: =K106 -> 43496.64 | L112: =L106 -> 0 | M112: 8696.16 | N112: 52192.8
A113: TOTAL GERAL - Salário Equipe PRODUTO 06 (R$): | K113: =K111+K112 -> 1171736.64 | L113: =L111+L112 -> 0 | M113: 829151.52 | N113: 2000888.16
A118: ITEM | B118: DISCRIMINAÇÃO | C118: CODIGO | D118: UND | E118: QTD | F118: Prazo (Mês) | G118: SALÁRIOS MENSAL (R$) | K118: SALÁRIOS TOTAL (R$)
G119: SEM Encargo | H119: Periculosidade (30%) | I119: Encargos Sociais | J119: COM Encargo | K119: SEM Encargo | L119: Periculosidade (30%) | M119: Encargos Sociais | N119: COM Encargo
A121: 7 | B121: APOIO TÉCNICO-ADMINISTRATIVO
A122: 7.1 | B122: ADMINISTRATIVO (Escritório - APOIO LOGISTICO)
A123: 7.1.1 | B123: Auxiliar Administrativo | C123: A3 | D123: Und/Mês | E123: 4 | F123: 18 | G123: ='Base de Preço (Salários)'!D28 -> 1800 | H123: =TRUNC(G123*0,2) -> 0 | I123: =TRUNC((G123+H123)*$I$160,2) -> 1300.86 | J123: =SUM(G123:I123) -> 3100.86 | K123: =TRUNC(E123*F123*G123,2) -> 129600 | L123: =TRUNC(E123*F123*H123,2) -> 0 | M123: =TRUNC(E123*F123*I123,2) -> 93661.92 | N123: =SUM(K123:M123) -> 223261.92
A124: 7.1.2 | B124: Serviços Gerais (Limpeza) | C124: A4 | D124: h | E124: 128 | F124: 18 | G124: ='Base de Preço (Salários)'!C29 -> 8.4 | H124: =TRUNC(G124*0,2) -> 0 | I124: =TRUNC((G124+H124)*$G160,2) -> 9.84 | J124: 18.24 | K124: =TRUNC(E124*F124*G124,2) -> 19353.6 | L124: =TRUNC(E124*F124*H124,2) -> 0 | M124: =TRUNC(E124*F124*I124,2) -> 22671.36 | N124: 42024.96
A125: 7.2 | B125: ADMINISTRATIVO (Escritório Central - CAMPO)
A126: 7.2.1 | B126: Chefe de Escritório | C126: AS | D126: Und/Mês | E126: 1 | F126: 18 | G126: ='Base de Preço (Salários)'!D24 -> 3200 | H126: =TRUNC(G126*0,2) -> 0 | I126: =TRUNC((G126+H126)*$I$160,2) -> 2312.64 | J126: =SUM(G126:I126) -> 5512.64 | K126: =TRUNC(E126*F126*G126,2) -> 57600 | L126: =TRUNC(E126*F126*H126,2) -> 0 | M126: =TRUNC(E126*F126*I126,2) -> 41627.52 | N126: =SUM(K126:M126) -> 99227.52
A127: 7.2.2 | B127: Secretária | C127: A0 | D127: Und/Mês | E127: 1 | F127: 18 | G127: ='Base de Preço (Salários)'!D25 -> 2700 | H127: =TRUNC(G127*0,2) -> 0 | I127: 1951.29 | J127: 4651.29 | K127: =TRUNC(E127*F127*G127,2) -> 48600 | L127: =TRUNC(E127*F127*H127,2) -> 0 | M127: =TRUNC(E127*F127*I127,2) -> 35123.22 | N127: 83723.22
A128: 7.2.3 | B128: Assistente Administrativo | C128: A1 | D128: Und/Mês | E128: 2 | F128: 18 | G128: ='Base de Preço (Salários)'!D26 -> 2600 | H128: =TRUNC(G128*0,2) -> 0 | I128: 1879.02 | J128: =SUM(G128:I128) -> 4479.02 | K128: =TRUNC(E128*F128*G128,2) -> 93600 | L128: =TRUNC(E128*F128*H128,2) -> 0 | M128: =TRUNC(E128*F128*I128,2) -> 67644.72 | N128: =SUM(K128:M128) -> 161244.72
A129: 7.2.4 | B129: Auxiliar Administrativo | C129: A3 | D129: Und/Mês | E129: 1 | F129: 18 | G129: ='Base de Preço (Salários)'!D28 -> 1800 | H129: 0 | I129: 1300.86 | J129: 3100.86 | K129: 32400 | L129: 0 | M129: 23415.48 | N129: 55815.48
A130: 7.2.5 | B130: Técnico em TI (Pleno) | C130: T1 | D130: Und/Mês | E130: 2 | F130: 18 | G130: ='Base de Preço (Salários)'!D20 -> 3200 | H130: 0 | I130: 2312.64 | J130: 5512.64 | K130: 115200 | L130: 0 | M130: 83255.04 | N130: 198455.04
A131: 7.2.6 | B131: Serviços Gerais (Limpeza / Copa) | C131: A4 | D131: Und/Mês | E131: 2 | F131: 18 | G131: ='Base de Preço (Salários)'!D29 -> 1478.4 | H131: 0 | I131: 1068.43 | J131: 2546.83 | K131: 53222.4 | L131: 0 | M131: 38463.48 | N131: 91685.88
A132: 7.2.7 | B132: Vigia | C132: A4 | D132: Und/Mês | E132: 1 | F132: 18 | G132: ='Base de Preço (Salários)'!D29 -> 1478.4 | H132: 0 | I132: 1068.43 | J132: 2546.83 | K132: 26611.2 | L132: 0 | M132: 19231.74 | N132: 45842.94
A133: 7.2.8 | B133: Motorista | C133: A3 | D133: Und/Mês | E133: 2 | F133: 18 | G133: ='Base de Preço (Salários)'!D28 -> 1800 | H133: 0 | I133: 1300.86 | J133: 3100.86 | K133: 64800 | L133: 0 | M133: 46830.96 | N133: 111630.96
A134: 7.3 | B134: ADMINISTRATIVO (Escritório Central - SEDE BSB)
A135: 7.3.1 | B135: Secretária | C135: A0 | D135: Und/Mês | E135: 1 | F135: 18 | G135: ='Base de Preço (Salários)'!D49 -> 2700 | H135: =TRUNC(G135*0,2) -> 0 | I135: =TRUNC((G135+H135)*$H$160,2) -> 1963.44 | J135: =SUM(G135:I135) -> 4663.44 | K135: =TRUNC(E135*F135*G135,2) -> 48600 | L135: =TRUNC(E135*F135*H135,2) -> 0 | M135: =TRUNC(E135*F135*I135,2) -> 35341.92 | N135: =SUM(K135:M135) -> 83941.92
A136: 7.3.2 | B136: Técnico em TI (Pleno) | C136: T1 | D136: Und/Mês | E136: 1 | F136: 18 | G136: ='Base de Preço (Salários)'!D44 -> 3200 | H136: =TRUNC(G136*0,2) -> 0 | I136: =TRUNC((G136+H136)*$H$160,2) -> 2327.04 | J136: 5527.04 | K136: =TRUNC(E136*F136*G136,2) -> 57600 | L136: =TRUNC(E136*F136*H136,2) -> 0 | M136: =TRUNC(E136*F136*I136,2) -> 41886.72 | N136: 99486.72
A137: 7.3.3 | B137: Serviços Gerais (Limpeza) | C137: A4 | D137: Und/Mês | E137: 1 | F137: 18 | G137: ='Base de Preço (Salários)'!D53 -> 1478.4 | H137: =TRUNC(G137*0,2) -> 0 | I137: =TRUNC((G137+H137)*$H$160,2) -> 1075.09 | J137: 2553.49 | K137: =TRUNC(E137*F137*G137,2) -> 26611.2 | L137: =TRUNC(E137*F137*H137,2) -> 0 | M137: =TRUNC(E137*F137*I137,2) -> 19351.62 | N137: 45962.82
A138: 7.4 | B138: EQUIPE TÉCNICA (Escritório Central - SEDE BSB)
A139: 7.4.1 | B139: Especialista em Planejamento Organizacional, Gerenciamento de Portifólio, Programas, Projetos e Processos (Produto 2) | C139: P1 | D139: Und/Mês | E139: 1 | F139: 18 | G139: ='Base de Preço (Salários)'!D38 -> 9600 | H139: =TRUNC(G139*0,2) -> 0 | I139: =TRUNC((G139+H139)*$H$160,2) -> 6981.12 | J139: =SUM(G139:I139) -> 16581.12 | K139: =TRUNC(E139*F139*G139,2) -> 172800 | L139: =TRUNC(E139*F139*H139,2) -> 0 | M139: =TRUNC(E139*F139*I139,2) -> 125660.16 | N139: =SUM(K139:M139) -> 298460.16
A140: 7.4.2 | B140: Especialista em Planejamento Organizacional, Gerenciamento de Portifólio, Programas, Projetos e Processos (Produto 2) | C140: P3 | D140: Und/Mês | E140: 2 | F140: 18 | G140: ='Base de Preço (Salários)'!D40 -> 8483 | H140: =TRUNC(G140*0,2) -> 0 | I140: =TRUNC((G140+H140)*$H$160,2) -> 6168.83 | J140: 14651.83 | K140: =TRUNC(E140*F140*G140,2) -> 305388 | L140: =TRUNC(E140*F140*H140,2) -> 0 | M140: =TRUNC(E140*F140*I140,2) -> 222077.88 | N140: 527465.88
A141: 7.4.3 | B141: Engenheiro Civil | C141: P2 | D141: Und/Mês | E141: 2 | F141: 18 | G141: ='Base de Preço (Salários)'!D39 -> 9100 | H141: =TRUNC(G141*0,2) -> 0 | I141: =TRUNC((G141+H141)*$H$160,2) -> 6617.52 | J141: 15717.52 | K141: =TRUNC(E141*F141*G141,2) -> 327600 | L141: =TRUNC(E141*F141*H141,2) -> 0 | M141: =TRUNC(E141*F141*I141,2) -> 238230.72 | N141: 565830.72
A142: 7.4.4 | B142: Engenheiro Eletricista | C142: P1 | D142: Und/Mês | E142: 3 | F142: 18 | G142: ='Base de Preço (Salários)'!D38 -> 9600 | H142: 0 | I142: 6981.12 | J142: 16581.12 | K142: 518400 | L142: 0 | M142: 376980.48 | N142: =SUM(K142:M142) -> 895380.48
A143: 7.4.5 | B143: Engenheiro Mecânico | C143: P1 | D143: Und/Mês | E143: 1 | F143: 18 | G143: ='Base de Preço (Salários)'!D38 -> 9600 | H143: 0 | I143: 6981.12 | J143: 16581.12 | K143: 172800 | L143: 0 | M143: 125660.16 | N143: 298460.16
A144: 7.4.6 | B144: Engenheiro Hidráulico (Civil ou Mecânica) | C144: P1 | D144: Und/Mês | E144: 1 | F144: 18 | G144: ='Base de Preço (Salários)'!D38 -> 9600 | H144: 0 | I144: 6981.12 | J144: 16581.12 | K144: 172800 | L144: 0 | M144: 125660.16 | N144: 298460.16
A145: 7.4.7 | B145: Engenheiro Hidrólogo (Civil) | C145: P1 | D145: Und/Mês | E145: 1 | F145: 18 | G145: ='Base de Preço (Salários)'!D38 -> 9600 | H145: 0 | I145: 6981.12 | J145: 16581.12 | K145: 172800 | L145: 0 | M145: 125660.16 | N145: 298460.16
A146: 7.4.8 | B146: Engenheiro Telecomunicações | C146: P1 | D146: Und/Mês | E146: 1 | F146: 18 | G146: ='Base de Preço (Salários)'!D38 -> 9600 | H146: 0 | I146: 6981.12 | J146: 16581.12 | K146: 172800 | L146: 0 | M146: 125660.16 | N146: 298460.16
A147: 7.4.9 | B147: Engenheiro Automação | C147: P1 | D147: Und/Mês | E147: 1 | F147: 18 | G147: ='Base de Preço (Salários)'!D38 -> 9600 | H147: 0 | I147: 6981.12 | J147: 16581.12 | K147: 172800 | L147: 0 | M147: 125660.16 | N147: 298460.16
A148: 7.4.10 | B148: Engenheiro Trainee | C148: P4 | D148: Und/Mês | E148: 2 | F148: 18 | G148: ='Base de Preço (Salários)'!D41 -> 8108.32 | H148: 0 | I148: 5896.37 | J148: 14004.69 | K148: 291899.52 | L148: 0 | M148: 212269.32 | N148: 504168.84
A149: Total Geral - Equipe com Vínculo Mensalista - Campo (R$): | K149: =K123+SUM(K126:K133) -> 621633.6 | L149: =L123+SUM(L126:L133) -> 0 | M149: =M123+SUM(M126:M133) -> 449254.08 | N149: 1070887.68
A150: Total Geral - Equipe com Vínculo Mensalista - Sede (R$): | K150: =SUM(K135:K137)+SUM(K139:K148) -> 2612898.72 | L150: =SUM(L135:L137)+SUM(L139:L148) -> 0 | M150: 1900099.62 | N150: 4512998.34
A151: Total Geral - Equipe com Vínculo Horista - Campo (R$): | K151: =K124 -> 19353.6 | L151: =L124 -> 0 | M151: 22671.36 | N151: 42024.96
A152: Total Geral - Equipe sem Vínculo - CONSULTORIA (R$): | K152: 0 | L152: 0 | M152: 0 | N152: 0
A153: TOTAL GERAL - Salário Equipe PRODUTO 07 (R$): | K153: =SUM(K149:K152) -> 3253885.92 | L153: =SUM(L149:L152) -> 0 | M153: 2372025.06 | N153: 5625910.98
D158: Encargos Sociais
D159: Periculosidade | F159: Horista (DF): | G159: Horista (PE): | H159: Mensalista (DF): | I159: Mensalista (PE): | J159: Sem Vínculo
D160: 0.3 | F160: ='Encargos Sociais'!C56 -> 1.1383 | G160: ='Encargos Sociais'!F56 -> 1.1718 | H160: ='Encargos Sociais'!D56 -> 0.7272 | I160: ='Encargos Sociais'!G56 -> 0.7227 | J160: 0.2
A165: RESUMO - MÃO-DE-OBRA
A166: Equipe | B166: PRODUTO | G166: SALÁRIO TOTAL (R$)
G167: SALÁRIO | I167: PERICULOSIDADE | K167: ENCARGOS SOCIAIS | M167: SALÁRIO COM ENCARGOS SOCIAIS
A169: 01 | B169: Apoio a Gestão e Atividades Técnicas Especializadas, Acompanhamento de Comissionamentos, Testes e Pré-Operação / Estudo e Coleta de Dados da Implantação do Projeto / Plano de Segurança e Saúde do Trabalho | G169: =K44 -> 8299449.84 | I169: =L44 -> 1950455.88 | K169: =M44 -> 7362124.9 | M169: =SUM(G169:L171) -> 17612030.62
A172: 02 | B172: Planejamento de Ações e Marcos Estratégicos | G172: =K59 -> 770368.84 | I172: =L59 -> 0 | K172: =M59 -> 713689.08 | M172: =SUM(G172:L172) -> 1484057.92
A173: 03 | B173: Plano de Comunicação Social | G173: =K73 -> 153420.96 | I173: =L73 -> 0 | K173: =M73 -> 111567.63 | M173: =SUM(G173:L173) -> 264988.59
A174: 04 | B174: Estratégias de Oferta e Demanda | G174: =K88 -> 1040527.68 | I174: =L88 -> 0 | K174: =M88 -> 689952.72 | M174: 1730480.4
A175: 05 | B175: Estudos e Simulações Elétricas - Incluindo Automação Elétrica e de Processo | G175: =K99 -> 189803.52 | I175: =L99 -> 0 | K175: =M99 -> 37946.88 | M175: 227750.4
A176: 06 | B176: Gestão de Ativos Patrimoniais | G176: =K113 -> 1171736.64 | I176: =L113 -> 0 | K176: =M113 -> 829151.52 | M176: 2000888.16
A177: 07 | B177: Apoio Técnico-Administrativo | G177: =K153 -> 3253885.92 | I177: =L153 -> 0 | K177: =M153 -> 2372025.06 | M177: 5625910.98
A178: TOTAL - Salários equipe (R$): | G178: =SUM(G169:H177) -> 14879193.4 | I178: =SUM(I169:J177) -> 1950455.88 | K178: =SUM(K169:L177) -> 12116457.79 | M178: =SUM(M169:N177) -> 28946107.07
A182: NOME DO INFORMANTE: | L182: QUALIFICAÇÃO:
A183: MARCIO TAGLIARI | L183: REPRESENTANTE LEGAL
A184: ASSINATURA: | L184: DATA:
L185: 2019-02-18
A186: OBSERVAÇÃO:

Sheet Alimentação (Detalhamento)
A1: Ministério da Integração Nacional - MI
A2: Companhia de Desenvolvimento dos Vales do São Francisco e do Parnaíba
A5: CONTRATAÇÃO DOS SERVIÇOS TÉCNICOS ESPECIALIZADOS DE APOIO ÀS ATIVIDADES DA GESTÃO DO PROJETO DE INTEGRAÇÃO DO RIO SÃO FRANCISCO COM AS BACIAS HIDROGRÁFICAS DO NORDESTE SETENTRIONAL – PISF
A9: AUXÍLIO ALIMENTAÇÃO - MÃO DE OBRA
A12: ITEM | B12: DISCRIMINAÇÃO | C12: CODIGO | D12: UND | E12: QTD | F12: Prazo (Mês) | G12: Total de Meses
A15: 1. | B15: Apoio a Gestão e Atividades Técnicas Especializadas, Acompanhamento de Comissionamentos, Recebimento, Testes e Pré-Operação / Estudo e Coleta de Dados da Implantação do Projeto / Plano de Segurança e Saúde do Trabalho
A18: 1.1 | B18: Gerente de Contrato - Engenheiro Sênior | C18: P0 | D18: Und/Mês | E18: 1 | F18: 18 | G18: 18
A19: 1.2 | B19: Consultor | C19: C | D19: Und/Mês | E19: - | F19: - | G19: -
A20: 1.3 | B20: Profissional em Planejamento de Segurança | C20: P1 | D20: Und/Mês | E20: - | F20: - | G20: -
A21: 1.4 | B21: Eng. Pleno - Civil | C21: P1 | D21: Und/Mês | E21: 4 | F21: 18 | G21: 72
A22: 1.5 | B22: Eng. Pleno - Mecânica | C22: P1 | D22: Und/Mês | E22: 4 | F22: 18 | G22: 72
A23: 1.6 | B23: Eng. Pleno - Eletricista | C23: P1 | D23: Und/Mês | E23: 4 | F23: 18 | G23: 72
A24: 1.7 | B24: Eng. Pleno - Telecomunicações | C24: P1 | D24: Und/Mês | E24: 2 | F24: 18 | G24: 36
A25: 1.8 | B25: Eng. Pleno - Automação | C25: P1 | D25: Und/Mês | E25: 2 | F25: 18 | G25: 36
A26: 1.9 | B26: Eng. Pleno - Ambiental | C26: P1 | D26: Und/Mês | E26: 2 | F26: 18 | G26: 36
A27: 1.10 | B27: Eng. Médio - Engenheiro de Apoio de Campo | C27: P2 | D27: Und/Mês | E27: 6 | F27: 18 | G27: 108
A28: 1.11 | B28: Técnico Sênior Campo | C28: T0 | D28: Und/Mês | E28: 24 | F28: 18 | G28: 432
A29: 1.12 | B29: Profissional em TI - Pleno | C29: P1 | D29: Und/Mês | E29: 1 | F29: 18 | G29: 18
A30: 1.13 | B30: Profissional em TI - Nível Médio | C30: T0 | D30: Und/Mês | E30: 1 | F30: 18 | G30: 18
A31: 1.14 | B31: Eng. Médio - Civil | C31: P2 | D31: Und/Mês | E31: 2 | F31: 3 | G31: 6
A32: 1.15 | B32: Eng. Médio - Mecânica | C32: P2 | D32: Und/Mês | E32: 2 | F32: 3 | G32: 6
A33: 1.16 | B33: Eng. Médio - Eletricista | C33: P2 | D33: Und/Mês | E33: 2 | F33: 3 | G33: 6
A34: 1.17 | B34: Engenheiro - Trainee | C34: P4 | D34: Und/Mês | E34: 4 | F34: 3 | G34: 12
A35: 1.18 | B35: Técnico Pleno | C35: T1 | D35: Und/Mês | E35: 6 | F35: 3 | G35: 18
A36: 1.19 | B36: Engenheiro Pleno (Engenheiro Segurança do Trabalho) | C36: P1 | D36: Und/Mês | E36: 1 | F36: 4 | G36: 4
A37: 1.20 | B37: Técnico Sênior - Segurança do Trabalho | C37: T0 | D37: Und/Mês | E37: 2 | F37: 18 | G37: 36
A38: 1.21 | B38: Eng. Planejamento (O&M) | C38: P1 | D38: Und/Mês | E38: 1 | F38: 18 | G38: 18
A39: 1.22 | B39: Técnico de Planejamento (O&M) | C39: T1 | D39: Und/Mês | E39: 2 | F39: 18 | G39: 36
A40: 1.23 | B40: Especialista em Planejamento Organizacional, Gerenciamento de Portifolio, Programas, Projetos e Processos (Produto 2) | C40: P3 | D40: Und/Mês | E40: 2 | F40: 15 | G40: 30
A41: 1.24 | B41: Engenheiro Hidráulico (Civil ou Mecânica) | C41: P1 | D41: Und/Mês | E41: 1 | F41: 18 | G41: 18
A42: 1.25 | B42: Engenheiro Hidrólogo (Civil) | C42: P1 | D42: Und/Mês | E42: 1 | F42: 18 | G42: 18
A43: 1.26 | B43: Geólogo | C43: P2 | D43: Und/Mês | E43: 1 | F43: 18 | G43: 18
A44: 1.27 | B44: Topógrafo | C44: TS | D44: Und/Mês | E44: 2 | F44: 18 | G44: 36
A45: 1.28 | B45: Auxiliar de Topografia | C45: T3 | D45: Und/Mês | E45: 4 | F45: 18 | G45: 72
A46: Total de Meses: | G46: 1252
A47: Valor Mensal do Auxilio Alimentação - Portaria MPOG nº 11, de 13/01/2016 (R$): | G47: =458 -> 458
A48: TOTAL GERAL - Auxílio Alimentação Equipe PRODUTO 01 (R$): | G48: =TRUNC(G46*G47,2) -> 573416
A51: ITEM | B51: DISCRIMINAÇÃO | C51: CODIGO | D51: UND | E51: QTD | F51: Prazo (Mês) | G51: Total de Meses
A54: 2. | B54: Planejamento de Ações e Marcos Estratégicos
A55: 2.1 | B55: Especialista em Planejamento Organizacional, Gerenciamento de Portifólio, Programas, Projetos e Processos (Etapa 1 / 2 / 3) | C55: P0 | D55: Und/Mês | E55: 1 | F55: 1 | G55: 1
A56: 2.2 | B56: Especialista em Planejamento Organizacional - Plano de Ação (Etapa 6) | C56: P3 | D56: Und/Mês | E56: 2 | F56: 18 | G56: 36
A57: 2.3 | B57: Especialista em Soluções Microsoft - DEMANDA (Etapa 4) | C57: P1 | D57: h | E57: - | F57: - | G57: -
A58: 2.4 | B58: Especialista em Soluções Microsoft - DEMANDA (Etapa 5) | C58: P1 | D58: h | E58: - | F58: - | G58: -
A59: 2.5 | B59: Especialista em Soluções de Tecnologia da Informação (Etapa 7) | C59: P0 | D59: Und/Mês | E59: 1 | F59: 7 | G59: 7
A60: 2.6 | B60: Especialista em Soluções de Tecnologia da Informação - DEMANDA (Etapa 7) | C60: P1 | D60: h | E60: - | F60: - | G60: -
A61: Total de Meses: | G61: 44
A62: Valor Mensal do Auxilio Alimentação - Portaria MPOG nº 11, de 13/01/2016 (R$): | G62: =G47 -> 458
A63: TOTAL GERAL - Auxílio Alimentação Equipe PRODUTO 02 (R$): | G63: =TRUNC(G61*G62,2) -> 20152
A66: ITEM | B66: DISCRIMINAÇÃO | C66: CODIGO | D66: UND | E66: QTD | F66: Prazo (Mês) | G66: Total de Meses
A69: 3. | B69: Plano de Comunicação Social
A70: 3.1 | B70: Gestor em Comunicação (Superior em Comunicação) | C70: P2 | D70: Und/Mês | E70: 1 | F70: 3 | G70: 3
A71: 3.2 | B71: Jornalista | C71: P3 | D71: Und/Mês | E71: 2 | F71: 3 | G71: 6
A72: 3.3 | B72: Publicitário | C72: P3 | D72: Und/Mês | E72: 2 | F72: 3 | G72: 6
A73: 3.4 | B73: Revisor (Nivel Superior - Letras) | C73: P4 | D73: Und/Mês | E73: 1 | F73: 3 | G73: 3
A74: Total de Meses: | G74: 18
A75: Valor Mensal do Auxilio Alimentação - Portaria MPOG nº 11, de 13/01/2016 (R$): | G75: =G62 -> 458
A76: TOTAL GERAL - Auxílio Alimentação Equipe PRODUTO 03 (R$): | G76: =TRUNC(G74*G75,2) -> 8244
A78: ITEM | B78: DISCRIMINAÇÃO | C78: CODIGO | D78: UND | E78: QTD | F78: Prazo (Mês) | G78: Total de Meses
A81: 4. | B81: Estratégias de Oferta e Demanda
A82: 4.1 | B82: Consultor - Hidrologia | C82: C | D82: h | E82: - | F82: 12 | G82: -
A83: 4.2 | B83: Consultor - Hidráulica | C83: C | D83: h | E83: - | F83: 12 | G83: -
A84: 4.3 | B84: Engenheiro Hidráulico (Civil ou Mecânica) | C84: P2 | D84: Und/Mês | E84: 4 | F84: 12 | G84: 48
A85: 4.4 | B85: Engenheiro Hidrologia | C85: P2 | D85: Und/Mês | E85: 2 | F85: 12 | G85: 24
A86: 4.5 | B86: Engenheiro Hidrologia | C86: P3 | D86: Und/Mês | E86: 1 | F86: 12 | G86: 12
A87: 4.6 | B87: Engenheiro Hidráulica | C87: P3 | D87: Und/Mês | E87: 1 | F87: 12 | G87: 12
A88: 4.7 | B88: Técnico Esecializado - Informática | C88: TS | D88: Und/Mês | E88: 1 | F88: 12 | G88: 12
A89: Total de Meses: | G89: 108
A90: Valor Mensal do Auxilio Alimentação - Portaria MPOG nº 11, de 13/01/2016 (R$): | G90: =G75 -> 458
A91: TOTAL GERAL - Auxílio Alimentação Equipe PRODUTO 04 (R$): | G91: =TRUNC(G89*G90,2) -> 49464
A94: ITEM | B94: DISCRIMINAÇÃO | C94: CODIGO | D94: UND | E94: QTD | F94: Prazo (Mês) | G94: Total de Meses
A97: 5. | B97: Estudos e Simulações Elétricas
A98: 5.1 | B98: Consultor - Sistemas Elétricos | C98: C | D98: h | E98: - | F98: - | G98: -
A99: 5.2 | B99: Consultor - Sistemas de Automação | C99: C | D99: h | E99: - | F99: - | G99: -
A100: Total de Meses: | G100: 0
A101: Valor Mensal do Auxilio Alimentação - Portaria MPOG nº 11, de 13/01/2016 (R$): | G101: =G90 -> 458
A102: TOTAL GERAL - Auxílio Alimentação Equipe PRODUTO 05 (R$): | G102: =TRUNC(G100*G101,2) -> 0
A105: ITEM | B105: DISCRIMINAÇÃO | C105: CODIGO | D105: UND | E105: QTD | F105: Prazo (Mês) | G105: Total de Meses
A108: 6. | B108: Gestão de Ativos Patrimoniais
A109: 6.1 | B109: Consultoria - Gestão de Ativos Patrimoniais | C109: C | D109: h | E109: - | F109: - | G109: -
A110: 6.2 | B110: Engenheiro Médio | C110: P2 | D110: Und/Mês | E110: 3 | F110: 12 | G110: 36
A111: 6.3 | B111: Técnico Sênior | C111: T0 | D111: Und/Mês | E111: 8 | F111: 12 | G111: 96
A112: 6.3 | B112: Técnico Pleno | C112: T1 | D112: Und/Mês | E112: 6 | F112: 12 | G112: 72
A113: 6.3 | B113: Técnico Junior | C113: T2 | D113: Und/Mês | E113: 6 | F113: 12 | G113: 72
A114: Total de Meses: | G114: 276
A115: Valor Mensal do Auxilio Alimentação - Portaria MPOG nº 11, de 13/01/2016 (R$): | G115: =G101 -> 458
A116: TOTAL GERAL - Auxílio Alimentação Equipe PRODUTO 06 (R$): | G116: =TRUNC(G114*G115,2) -> 126408
A119: ITEM | B119: DISCRIMINAÇÃO | C119: CODIGO | D119: UND | E119: QTD | F119: Prazo (Mês) | G119: Total de Meses
A122: 7 | B122: APOIO TÉCNICO-ADMINISTRATIVO
A123: 7.1 | B123: ADMINISTRATIVO (Escritório - APOIO LOGISTICO)
A124: 7.1.1 | B124: Auxiliar Administrativo | C124: A3 | D124: Und/Mês | E124: 4 | F124: 18 | G124: 72
A125: 7.1.2 | B125: Serviços Gerais (Limpeza) | C125: A4 | D125: h | E125: 128 | F125: 18 | G125: -
A126: 7.2 | B126: ADMINISTRATIVO (Escritório Central - CAMPO)
A127: 7.2.1 | B127: Chefe de Escritório | C127: AS | D127: Und/Mês | E127: 1 | F127: 18 | G127: 18
A128: 7.2.2 | B128: Secretária | C128: A0 | D128: Und/Mês | E128: 1 | F128: 18 | G128: 18
A129: 7.2.3 | B129: Assistente Administrativo | C129: A1 | D129: Und/Mês | E129: 2 | F129: 18 | G129: 36
A130: 7.2.4 | B130: Auxiliar Administrativo | C130: A3 | D130: Und/Mês | E130: 1 | F130: 18 | G130: 18
A131: 7.2.5 | B131: Técnico em TI (Pleno) | C131: T1 | D131: Und/Mês | E131: 2 | F131: 18 | G131: 36
A132: 7.2.6 | B132: Serviços Gerais (Limpeza / Copa) | C132: A4 | D132: Und/Mês | E132: 2 | F132: 18 | G132: 36
A133: 7.2.7 | B133: Vigilância | C133: A4 | D133: Und/Mês | E133: 1 | F133: 18 | G133: 18
A134: 7.2.8 | B134: Motorista | C134: A3 | D134: Und/Mês | E134: 2 | F134: 18 | G134: 36
A135: 7.3 | B135: ADMINISTRATIVO (Escritório Central - SEDE)
A136: 7.3.1 | B136: Secretária | C136: A0 | D136: Und/Mês | E136: 1 | F136: 18 | G136: 18
A137: 7.3.2 | B137: Técnico em TI (Pleno) | C137: T1 | D137: Und/Mês | E137: 1 | F137: 18 | G137: 18
A138: 7.3.3 | B138: Serviços Gerais (Limpeza) | C138: A4 | D138: Und/Mês | E138: 1 | F138: 18 | G138: 18
A139: 7.4 | B139: EQUIPE TÉCNICA (Escritório Central - SEDE BSB)
A140: 7.4.1 | B140: Especialista em Planejamento Organizacional, Gerenciamento de Portifolio, Programas, Projetos e Processos (Produto 2) | C140: P1 | D140: Und/Mês | E140: 1 | F140: 18 | G140: 18
A141: 7.4.2 | B141: Especialista em Planejamento Organizacional, Gerenciamento de Portifolio, Programas, Projetos e Processos (Produto 2) | C141: P3 | D141: Und/Mês | E141: 2 | F141: 18 | G141: 36
A142: 7.4.3 | B142: Engenheiro Civil | C142: P2 | D142: Und/Mês | E142: 2 | F142: 18 | G142: 36
A143: 7.4.4 | B143: Engenheiro Eletricista | C143: P1 | D143: Und/Mês | E143: 3 | F143: 18 | G143: 54
A144: 7.4.5 | B144: Engenheiro Mecânico | C144: P1 | D144: Und/Mês | E144: 1 | F144: 18 | G144: 18
A145: 7.4.6 | B145: Engenheiro Hidráulico (Civil ou Mecânica) | C145: P1 | D145: Und/Mês | E145: 1 | F145: 18 | G145: 18
A146: 7.4.7 | B146: Engenheiro Hidrólogo (Civil) | C146: P1 | D146: Und/Mês | E146: 1 | F146: 18 | G146: 18
A147: 7.4.8 | B147: Engenheiro Telecomunicações | C147: P1 | D147: Und/Mês | E147: 1 | F147: 18 | G147: 18
A148: 7.4.9 | B148: Engenheiro Automação | C148: P1 | D148: Und/Mês | E148: 1 | F148: 18 | G148: 18
A149: 7.4.10 | B149: Engenheiro Trainee | C149: P4 | D149: Und/Mês | E149: 2 | F149: 18 | G149: 36
A150: Total de Meses: | G150: 612
A151: Valor Mensal do Auxilio Alimentação - Portaria MPOG nº 11, de 13/01/2016 (R$): | G151: =G115 -> 458
A152: TOTAL GERAL - Auxílio Alimentação Equipe PRODUTO 07 (R$): | G152: =TRUNC(G150*G151,2) -> 280296
A158: RESUMO - ALIMENTAÇÃO
A159: Equipe | B159: PRODUTO | G159: VALOR (R$)
A162: 01 | B162: Apoio a Gestão e Atividades Técnicas Especializadas, Acompanhamento de Comissionamentos, Testes e Pré-Operação / Estudo e Coleta de Dados da Implantação do Projeto / Plano de Segurança e Saúde do Trabalho | G162: =G48 -> 573416
A165: 02 | B165: Planejamento de Ações e Marcos Estratégicos | G165: =G63 -> 20152
A166: 03 | B166: Plano de Comunicação Social | G166: =G76 -> 8244
A167: 04 | B167: Estratégias de Oferta e Demanda | G167: =G91 -> 49464
A168: 05 | B168: Estudos e Simulações Elétricas - Incluindo Automação Elétrica e de Processo | G168: =G102 -> 0
A169: 06 | B169: Gestão de Ativos Patrimoniais | G169: =G116 -> 126408
A170: 07 | B170: Administração Central | G170: =G152 -> 280296
A171: TOTAL - Alimentação Equipe (R$): | G171: =SUM(G162:G170) -> 1057980
A173: NOME DO INFORMANTE: | F173: QUALIFICAÇÃO:
A174: MARCIO TAGLIARI | F174: REPRESENTANTE LEGAL
A175: ASSINATURA: | F175: DATA:
F176: 2019-02-18
A177: OBSERVAÇÃO:

Sheet Mobilizacao_Desmobilizacao
A1: Ministério da Integração Nacional - MI
A2: Companhia de Desenvolvimento dos Vales do São Francisco e do Parnaíba
A5: CONTRATAÇÃO DOS SERVIÇOS TÉCNICOS ESPECIALIZADOS DE APOIO ÀS ATIVIDADES DA GESTÃO DO PROJETO DE INTEGRAÇÃO DO RIO SÃO FRANCISCO COM AS BACIAS HIDROGRÁFICAS DO NORDESTE SETENTRIONAL – PISF
A8: MOBILIZAÇÃO / DESMOBILIZAÇAO
A10: ITEM | B10: DISCRIMINAÇÃO | C10: UND | D10: QTD | E10: Custo Unitário (R$) | F10: Custo Total (R$) | G10: Remuneração de Escritório (R$) | H10: Despesas Fiscais (R$) | I10: PREÇO TOTAL (R$)
A13: 1. | B13: MOBILIZAÇÃO DA EQUIPE
A14: 1.1 | B14: Passagem Aérea (Trecho) | C14: und | D14: 20 | E14: ='MemCalculo (Trecho Aéreo)'!D70 -> 806.9 | F14: =TRUNC(D14*E14,2) -> 16138 | G14: =TRUNC(F14*0.05,2) -> 806.9 | H14: =TRUNC(((F14+G14)*'Despesas Fiscais'!$D$15/100),2) -> 2577.31 | I14: =SUM(F14:H14) -> 19522.21
A15: 1.2 | B15: Aluguel de Veículo Tipo Pick-Up, Cabine Dupla, 4x4 (7.000Km/mês) | C15: und x mês | D15: 1 | E15: 4500 | F15: =TRUNC(D15*E15,2) -> 4500 | G15: =TRUNC(F15*0.05,2) -> 225 | H15: =TRUNC(((F15+G15)*'Despesas Fiscais'!$D$15/100),2) -> 718.67 | I15: =SUM(F15:H15) -> 5443.67
A16: 1.3 | B16: Aluguel - Escritório Apoio Logístico | C16: und x mês | D16: 1 | E16: 1400 | F16: 1400 | G16: 70 | H16: =TRUNC(((F16+G16)*'Despesas Fiscais'!$D$15/100),2) -> 223.58 | I16: =SUM(F16:H16) -> 1693.58
A17: 1.4 | B17: Aluguel - Escritório Central | C17: und x mês | D17: 2 | E17: 1800 | F17: 3600 | G17: 180 | H17: =TRUNC(((F17+G17)*'Despesas Fiscais'!$D$15/100),2) -> 574.93 | I17: 4354.93
A18: 1.5 | B18: Aluguel - Casa para Engenheiro | C18: und x mês | D18: 1 | E18: 1600 | F18: 1600 | G18: 80 | H18: =TRUNC(((F18+G18)*'Despesas Fiscais'!$D$15/100),2) -> 255.52 | I18: 1935.52
A19: 1.6 | B19: Aluguel - Alojamento para Pessoal | C19: und x mês | D19: 1 | E19: 1500 | F19: 1500 | G19: 75 | H19: =TRUNC(((F19+G19)*'Despesas Fiscais'!$D$15/100),2) -> 239.55 | I19: 1814.55
A20: 1.7 | B20: Mobiliário - Escritório Apoio Logístico | C20: und x mês | D20: 1 | E20: 600 | F20: 600 | G20: 30 | H20: =TRUNC(((F20+G20)*'Despesas Fiscais'!$D$15/100),2) -> 95.82 | I20: 725.82
A21: 1.8 | B21: Mobiliário - Escritório Central | C21: und x mês | D21: 2 | E21: ='MemCalculo (AdmManutEscritorio)'!F152 -> 4335.47 | F21: 8670.94 | G21: 433.54 | H21: =TRUNC(((F21+G21)*'Despesas Fiscais'!$D$15/100),2) -> 1384.79 | I21: 10489.27
A22: 1.9 | B22: Mobiliário - Casa para Engenheiro | C22: und x mês | D22: 1 | E22: 500 | F22: 500 | G22: 25 | H22: =TRUNC(((F22+G22)*'Despesas Fiscais'!$D$15/100),2) -> 79.85 | I22: 604.85
A23: 1.10 | B23: Mobiliário - Alojamento para Pessoal | C23: und x mês | D23: 1 | E23: 500 | F23: 500 | G23: 25 | H23: =TRUNC(((F23+G23)*'Despesas Fiscais'!$D$15/100),2) -> 79.85 | I23: 604.85
A24: Total - Mobilização da Equipe (R$): | F24: =SUM(F14:F23) -> 39008.94 | G24: =SUM(G14:G23) -> 1950.44 | H24: =SUM(H14:H23) -> 6229.87 | I24: 47189.25
A26: 2. | B26: DESMOBILIZAÇÃO DA EQUIPE
A27: 2.1 | B27: Passagem Aérea (Trecho) | C27: und | D27: 40 | E27: ='MemCalculo (Trecho Aéreo)'!D70 -> 806.9 | F27: =TRUNC(D27*E27,2) -> 32276 | G27: =TRUNC(F27*0.05,2) -> 1613.8 | H27: =TRUNC(((F27+G27)*'Despesas Fiscais'!$D$15/100),2) -> 5154.63 | I27: =SUM(F27:H27) -> 39044.43
A28: 2.2 | B28: Aluguel de Veículo Tipo Pick-Up, Cabine Dupla, 4x4 (7.000Km/mês) | C28: und x mês | D28: 1 | E28: 4500 | F28: 4500 | G28: 225 | H28: =TRUNC(((F28+G28)*'Despesas Fiscais'!$D$15/100),2) -> 718.67 | I28: =SUM(F28:H28) -> 5443.67
A29: 2.3 | B29: Aluguel - Escritório Apoio Logístico | C29: und x mês | D29: 1 | E29: 1400 | F29: 1400 | G29: 70 | H29: =TRUNC(((F29+G29)*'Despesas Fiscais'!$D$15/100),2) -> 223.58 | I29: =SUM(F29:H29) -> 1693.58
A30: 2.4 | B30: Aluguel - Escritório Central | C30: und x mês | D30: 2 | E30: 1800 | F30: 3600 | G30: 180 | H30: =TRUNC(((F30+G30)*'Despesas Fiscais'!$D$15/100),2) -> 574.93 | I30: 4354.93
A31: 2.5 | B31: Aluguel - Casa para Engenheiro | C31: und x mês | D31: 1 | E31: 1600 | F31: 1600 | G31: 80 | H31: =TRUNC(((F31+G31)*'Despesas Fiscais'!$D$15/100),2) -> 255.52 | I31: 1935.52
A32: 2.6 | B32: Aluguel - Alojamento para Pessoal | C32: und x mês | D32: 1 | E32: 1500 | F32: 1500 | G32: 75 | H32: =TRUNC(((F32+G32)*'Despesas Fiscais'!$D$15/100),2) -> 239.55 | I32: 1814.55
A33: 2.7 | B33: Mobiliário - Escritório Apoio logístico | C33: und x mês | D33: 1 | E33: 600 | F33: 600 | G33: 30 | H33: =TRUNC(((F33+G33)*'Despesas Fiscais'!$D$15/100),2) -> 95.82 | I33: 725.82
A34: 2.8 | B34: Mobiliário - Escritório Central | C34: und x mês | D34: 2 | E34: ='MemCalculo (AdmManutEscritorio)'!F152 -> 4335.47 | F34: 8670.94 | G34: 433.54 | H34: =TRUNC(((F34+G34)*'Despesas Fiscais'!$D$15/100),2) -> 1384.79 | I34: 10489.27
A35: 2.9 | B35: Mobiliário - Casa para Engenheiro | C35: und x mês | D35: 1 | E35: 500 | F35: 500 | G35: 25 | H35: =TRUNC(((F35+G35)*'Despesas Fiscais'!$D$15/100),2) -> 79.85 | I35: 604.85
A36: 2.10 | B36: Mobiliário - Alojamento para Pessoal | C36: und x mês | D36: 1 | E36: 500 | F36: 500 | G36: 25 | H36: =TRUNC(((F36+G36)*'Despesas Fiscais'!$D$15/100),2) -> 79.85 | I36: 604.85
A37: Total - Desmobilização da Equipe (R$): | F37: =SUM(F27:F36) -> 55146.94 | G37: =SUM(G27:G36) -> 2757.34 | H37: 8807.19 | I37: 66711.47
A40: REMUNERAÇÃO DE ESCRITÓRIO (Taxa de 5% incindindo sobre o Custo Total) | H40: =G24+G37 -> 4707.78
A41: DESPESAS FISCAIS (15,21% DOS ITENS Outras Despesas + Remuneração escritório): | H41: =H24+H37 -> 15037.06
A42: CUSTOS INDIRETOS - Total (R$): | H42: =H40+H41 -> 19744.84
A46: NOME DO INFORMANTE: | H46: QUALIFICAÇÃO:
A47: MARCIO TAGLIARI | H47: REPRESENTANTE LEGAL
A48: ASSINATURA: | H48: DATA:
H49: 2019-02-18
A50: OBSERVAÇÃO:
A51: 1. Considerou na Mobilizaçao a ida de Equipe Administrativa e do Coordenador Geral do contrato para alugar e instalar os escritórios e as moradias.
A53: 2. Considerou na Desmobilização que a equipe administrativa irá desmontar e entregar os imóveis.
A54: 3. Considerou-se um veículo para o Coordenador do contrato se locomover.
A55: 4. Remuneração de Escritório: Taxa de 5% incindindo sobre Custo Total
A56: 5. Despesas Fiscais: Taxa de 15,21% incindindo sobre Custo Total e Remuneração de Escritório
A57: 6. Preço Total = Custo total (Despesas Diretas) + Remuneração de Escritório e Despesas Fiscais (Despesas Indiretas)

Sheet Outras Despesas (Adm_Manut)
A1: Ministério da Integração Nacional - MI
A2: Companhia de Desenvolvimento dos Vales do São Francisco e do Parnaíba
A5: CONTRATAÇÃO DOS SERVIÇOS TÉCNICOS ESPECIALIZADOS DE APOIO ÀS ATIVIDADES DA GESTÃO DO PROJETO DE INTEGRAÇÃO DO RIO SÃO FRANCISCO COM AS BACIAS HIDROGRÁFICAS DO NORDESTE SETENTRIONAL – PISF
A8: OUTRAS DESPESAS - ADMINISTRAÇÃO / MANUTENÇÃO DOS ESCRITORIOS
A10: ITEM | B10: DISCRIMINAÇÃO | C10: UND | D10: QTD | E10: Prazo (Mês) | F10: Qnt total de Meses | G10: Custo Unitário (R$) | H10: Custo Total (R$) | I10: Remuneração de Escritório (R$) | J10: Despesas Fiscais (R$) | K10: PREÇO TOTAL (R$)
A13: 1. | B13: IMÓVEIS (Instalação da Equipe) | K13: =SUM(K14:K17) -> 540012.3
A14: 1.1 | B14: Aluguel - Escritório Apoio Logístico | C14: Und/Mês | D14: 4 | E14: 18 | F14: 72 | G14: 1400 | H14: =TRUNC(F14*G14,2) -> 100800 | I14: =TRUNC(H14*0.05,2) -> 5040 | J14: =TRUNC((H14+I14)*'Despesas Fiscais'!$D$15/100,2) -> 16098.26 | K14: =SUM(H14:J14) -> 121938.26
A15: 1.2 | B15: Aluguel - Escritório Central | C15: Und/Mês | D15: 2 | E15: 18 | F15: 36 | G15: 1800 | H15: =TRUNC(F15*G15,2) -> 64800 | I15: =TRUNC(H15*0.05,2) -> 3240 | J15: =TRUNC((H15+I15)*'Despesas Fiscais'!$D$15/100,2) -> 10348.88 | K15: =SUM(H15:J15) -> 78388.88
A16: 1.3 | B16: Aluguel - Casa para Engenheiro | C16: Und/Mês | D16: 6 | E16: 18 | F16: 108 | G16: 1600 | H16: 172800 | I16: 8640 | J16: =TRUNC((H16+I16)*'Despesas Fiscais'!$D$15/100,2) -> 27597.02 | K16: 209037.02
A17: 1.4 | B17: Aluguel - Alojamento para Pessoal | C17: Und/Mês | D17: 4 | E17: 18 | F17: 72 | G17: 1500 | H17: 108000 | I17: 5400 | J17: =TRUNC((H17+I17)*'Despesas Fiscais'!$D$15/100,2) -> 17248.14 | K17: 130648.14
A18: 2. | B18: Mobiliário | K18: =SUM(K19:K22) -> 349939.72
A19: 2.1 | B19: Escritório Apoio Logístico | C19: Und/Mês | D19: 4 | E19: 18 | F19: 72 | G19: 600 | H19: =TRUNC(F19*G19,2) -> 43200 | I19: =TRUNC(H19*0.05,2) -> 2160 | J19: =TRUNC((H19+I19)*'Despesas Fiscais'!$D$15/100,2) -> 6899.25 | K19: =SUM(H19:J19) -> 52259.25
A20: 2.2 | B20: Escritório Central | C20: Und/Mês | D20: 2 | E20: 18 | F20: 36 | G20: ='MemCalculo (AdmManutEscritorio)'!F152 -> 4335.47 | H20: =TRUNC(F20*G20,2) -> 156076.92 | I20: =TRUNC(H20*0.05,2) -> 7803.84 | J20: =TRUNC((H20+I20)*'Despesas Fiscais'!$D$15/100,2) -> 24926.26 | K20: =SUM(H20:J20) -> 188807.02
A21: 2.3 | B21: Casa para Engenheiro | C21: Und/Mês | D21: 6 | E21: 18 | F21: 108 | G21: 500 | H21: =TRUNC(F21*G21,2) -> 54000 | I21: 2700 | J21: =TRUNC((H21+I21)*'Despesas Fiscais'!$D$15/100,2) -> 8624.07 | K21: 65324.07
A22: 2.4 | B22: Alojamento para Pessoal | C22: Und/Mês | D22: 4 | E22: 18 | F22: 72 | G22: 500 | H22: 36000 | I22: 1800 | J22: =TRUNC((H22+I22)*'Despesas Fiscais'!$D$15/100,2) -> 5749.38 | K22: 43549.38
A23: 3. | B23: Manutenção Imóveis | K23: =SUM(K24:K35) -> 507168.17
A24: 3.1 | B24: Telefone / Internet | C24: und x mês | D24: 10 | E24: 18 | F24: 180 | G24: 100 | H24: =TRUNC(F24*G24,2) -> 18000 | I24: =TRUNC(H24*0.05,2) -> 900 | J24: =TRUNC((H24+I24)*'Despesas Fiscais'!$D$15/100,2) -> 2874.69 | K24: =SUM(H24:J24) -> 21774.69
A25: 3.2 | B25: Telefone Celular | C25: und x mês | D25: 34 | E25: 18 | F25: 612 | G25: 39.9 | H25: =TRUNC(F25*G25,2) -> 24418.8 | I25: =TRUNC(H25*0.05,2) -> 1220.94 | J25: =TRUNC((H25+I25)*'Despesas Fiscais'!$D$15/100,2) -> 3899.8 | K25: =SUM(H25:J25) -> 29539.54
A26: 3.3 | B26: Energia Elétrica - Escritórios Apoio Logistico | C26: und x mês | D26: 4 | E26: 18 | F26: 72 | G26: 32 | H26: =TRUNC(F26*G26,2) -> 2304 | I26: 115.2 | J26: =TRUNC((H26+I26)*'Despesas Fiscais'!$D$15/100,2) -> 367.96 | K26: =SUM(H26:J26) -> 2787.16
A27: 3.4 | B27: Energia Elétrica - Escritórios Centrais | C27: und x mês | D27: 2 | E27: 18 | F27: 36 | G27: 1000 | H27: 36000 | I27: 1800 | J27: =TRUNC((H27+I27)*'Despesas Fiscais'!$D$15/100,2) -> 5749.38 | K27: 43549.38
A28: 3.5 | B28: Energia Elétrica - Residências | C28: und x mês | D28: 10 | E28: 18 | F28: 180 | G28: 500 | H28: 90000 | I28: 4500 | J28: =TRUNC((H28+I28)*'Despesas Fiscais'!$D$15/100,2) -> 14373.45 | K28: 108873.45
A29: 3.6 | B29: Água e Esgoto - Escritórios Apoio Logistico | C29: und x mês | D29: 4 | E29: 18 | F29: 72 | G29: 22 | H29: 1584 | I29: 79.2 | J29: =TRUNC((H29+I29)*'Despesas Fiscais'!$D$15/100,2) -> 252.97 | K29: 1916.17
A30: 3.7 | B30: Água e Esgoto - Escritórios Centrais | C30: und x mês | D30: 2 | E30: 18 | F30: 36 | G30: 380 | H30: 13680 | I30: 684 | J30: =TRUNC((H30+I30)*'Despesas Fiscais'!$D$15/100,2) -> 2184.76 | K30: 16548.76
A31: 3.8 | B31: Água e Esgoto - Residências | C31: und x mês | D31: 10 | E31: 18 | F31: 180 | G31: 285 | H31: 51300 | I31: 2565 | J31: =TRUNC((H31+I31)*'Despesas Fiscais'!$D$15/100,2) -> 8192.86 | K31: 62057.86
A32: 3.9 | B32: Material de Escritório - Central | C32: und x mês | D32: 2 | E32: 18 | F32: 36 | G32: ='MemCalculo (AdmManutEscritorio)'!F55 -> 2179.64 | H32: 78467.04 | I32: 3923.35 | J32: =TRUNC((H32+I32)*'Despesas Fiscais'!$D$15/100,2) -> 12531.57 | K32: 94921.96
A33: 3.10 | B33: Material de Escritório - Apoio | C33: und x mês | D33: 4 | E33: 18 | F33: 72 | G33: ='MemCalculo (AdmManutEscritorio)'!F80 -> 387.84 | H33: 27924.48 | I33: 1396.22 | J33: =TRUNC((H33+I33)*'Despesas Fiscais'!$D$15/100,2) -> 4459.67 | K33: 33780.37
A34: 3.11 | B34: Material de Limpeza / Higiene - Central | C34: und x mês | D34: 2 | E34: 18 | F34: 36 | G34: ='MemCalculo (AdmManutEscritorio)'!F104 -> 1767.34 | H34: 63624.24 | I34: 3181.21 | J34: =TRUNC((H34+I34)*'Despesas Fiscais'!$D$15/100,2) -> 10161.1 | K34: 76966.55
A35: 3.12 | B35: Material de Limpeza / Higiene - Apoio | C35: und x mês | D35: 4 | E35: 18 | F35: 72 | G35: ='MemCalculo (AdmManutEscritorio)'!F128 -> 165.93 | H35: 11946.96 | I35: 597.34 | J35: =TRUNC((H35+I35)*'Despesas Fiscais'!$D$15/100,2) -> 1907.98 | K35: 14452.28
A36: 4. | B36: Veículos | K36: =SUM(K37:K40) -> 2287213.42
A37: 4.1 | B37: Aluguel de Veículo Leve, Tipo Hatch 1.4 Flex (5.000Km/mês) | C37: und x mês | D37: 1 | E37: 18 | F37: 18 | G37: 2200 | H37: =TRUNC(F37*G37,2) -> 39600 | I37: =TRUNC(H37*0.05,2) -> 1980 | J37: =TRUNC((H37+I37)*'Despesas Fiscais'!$D$15/100,2) -> 6324.31 | K37: =SUM(H37:J37) -> 47904.31
A38: 4.2 | B38: Aluguel de Veículo Leve, Tipo Hatch 1.4 Flex (7.000Km/mês) | C38: und x mês | D38: 6 | E38: 18 | F38: 108 | G38: 2240 | H38: =TRUNC(F38*G38,2) -> 241920 | I38: =TRUNC(H38*0.05,2) -> 12096 | J38: =TRUNC((H38+I38)*'Despesas Fiscais'!$D$15/100,2) -> 38635.83 | K38: =SUM(H38:J38) -> 292651.83
A39: 4.4 | B39: Aluguel de Veículo Tipo Pick-Up, Cabine Simples, 4x4 (7.000Km/mês) | C39: und x mês | D39: 2 | E39: 18 | F39: 36 | G39: 4200 | H39: =TRUNC(F39*G39,2) -> 151200 | I39: 7560 | J39: =TRUNC((H39+I39)*'Despesas Fiscais'!$D$15/100,2) -> 24147.39 | K39: =SUM(H39:J39) -> 182907.39
A40: 4.6 | B40: Aluguel de Veículo Tipo Pick-Up, Cabine Dupla, 4x4 (7.000Km/mês) | C40: und x mês | D40: 18 | E40: 18 | F40: 324 | G40: 4500 | H40: 1458000 | I40: 72900 | J40: =TRUNC((H40+I40)*'Despesas Fiscais'!$D$15/100,2) -> 232849.89 | K40: 1763749.89
A41: 5. | B41: Equipamentos Diversos | K41: =K42 -> 47681.8556
A42: 5.1 | B42: Instrumental de Topografia (Estação Total Classe III + Nível Classe 2) | C42: und x mês | D42: 2 | E42: 18 | F42: 36 | G42: 1094.8921 | H42: =F42*G42 -> 39416.1156 | I42: =TRUNC(H42*0.05,2) -> 1970.8 | J42: =TRUNC((H42+I42)*'Despesas Fiscais'!$D$15/100,2) -> 6294.94 | K42: =SUM(H42:J42) -> 47681.8556
A43: 6. | B43: EPI | K43: =SUM(K44:K46) -> 153467.98
A44: 6.1 | B44: EPI - Campo Mensalista | C44: und x mês | D44: 84 | E44: 18 | F44: - | G44: ='MemCalculo (AdmManutEscritorio)'!F182 -> 59.43 | H44: =TRUNC(D44*E44*G44,2) -> 89858.16 | I44: =TRUNC(H44*0.05,2) -> 4492.9 | J44: =TRUNC((H44+I44)*'Despesas Fiscais'!$D$15/100,2) -> 14350.79 | K44: =SUM(H44:J44) -> 108701.85
A45: 6.2 | B45: EPI - Serviços Gerais | C45: und x mês | D45: 4 | E45: 18 | F45: - | G45: ='MemCalculo (AdmManutEscritorio)'!F196 -> 11.09 | H45: =TRUNC(D45*E45*G45,2) -> 798.48 | I45: =TRUNC(H45*0.05,2) -> 39.92 | J45: =TRUNC((H45+I45)*'Despesas Fiscais'!$D$15/100,2) -> 127.52 | K45: =SUM(H45:J45) -> 965.92
A46: 6.3 | B46: EPI - Campo Eletricista | C46: und x mês | D46: 14 | E46: 18 | F46: - | G46: ='MemCalculo (AdmManutEscritorio)'!F201 -> 143.68 | H46: 36207.36 | I46: 1810.36 | J46: =TRUNC((H46+I46)*'Despesas Fiscais'!$D$15/100,2) -> 5782.49 | K46: =SUM(H46:J46) -> 43800.21
A47: 7. | B47: VIAGENS / DIÁRIAS | K47: =SUM(K48:K49) -> 2958418.24
A48: 7.1 | B48: Viagens (Trecho Aéreos) | C48: und | D48: 900 | E48: - | F48: - | G48: ='MemCalculo (Trecho Aéreo)'!D70 -> 806.9 | H48: =TRUNC(D48*G48,2) -> 726210 | I48: =TRUNC(H48*0.05,2) -> 36310.5 | J48: =TRUNC((H48+I48)*'Despesas Fiscais'!$D$15/100,2) -> 115979.36 | K48: =SUM(H48:J48) -> 878499.86
A49: 7.2 | B49: Diárias | C49: und | D49: 14328 | E49: - | F49: - | G49: ='Viagens e Diárias (Por Demanda)'!J21 -> 120 | H49: =TRUNC(D49*G49,2) -> 1719360 | I49: =TRUNC(H49*0.05,2) -> 85968 | J49: =TRUNC((H49+I49)*'Despesas Fiscais'!$D$15/100,2) -> 274590.38 | K49: =SUM(H49:J49) -> 2079918.38
A50: 8. | B50: SERVIÇOS GRÁFICOS | K50: =SUM(K51:K57) -> 17390.68
A51: 8.1 | B51: Serviços Gráficos (Equipe Produto 01) | C51: und | D51: 1 | E51: - | F51: - | G51: ='MemCalculo (AdmManutEscritorio)'!F160 -> 1020 | H51: =TRUNC(D51*G51,2) -> 1020 | I51: =TRUNC(H51*0.05,2) -> 51 | J51: =TRUNC((H51+I51)*'Despesas Fiscais'!$D$15/100,2) -> 162.89 | K51: =SUM(H51:J51) -> 1233.89
A52: 8.2 | B52: Serviços Gráficos (Equipe Produto 02) | C52: und | D52: 1 | E52: - | F52: - | G52: ='MemCalculo (AdmManutEscritorio)'!F163 -> 660 | H52: =TRUNC(D52*G52,2) -> 660 | I52: =TRUNC(H52*0.05,2) -> 33 | J52: =TRUNC((H52+I52)*'Despesas Fiscais'!$D$15/100,2) -> 105.4 | K52: =SUM(H52:J52) -> 798.4
A53: 8.3 | B53: Serviços Gráficos (Equipe Produto 03) | C53: und | D53: 1 | E53: - | F53: - | G53: ='MemCalculo (AdmManutEscritorio)'!F166 -> 5000 | H53: 5000 | I53: 250 | J53: =TRUNC((H53+I53)*'Despesas Fiscais'!$D$15/100,2) -> 798.52 | K53: =SUM(H53:J53) -> 6048.52
A54: 8.4 | B54: Serviços Gráficos (Equipe Produto 04) | C54: und | D54: 1 | E54: - | F54: - | G54: ='MemCalculo (AdmManutEscritorio)'!F168 -> 120 | H54: 120 | I54: 6 | J54: =TRUNC((H54+I54)*'Despesas Fiscais'!$D$15/100,2) -> 19.16 | K54: 145.16
A55: 8.5 | B55: Serviços Gráficos (Equipe Produto 05) | C55: und | D55: 1 | E55: - | F55: - | G55: ='MemCalculo (AdmManutEscritorio)'!F170 -> 2060 | H55: 2060 | I55: 103 | J55: =TRUNC((H55+I55)*'Despesas Fiscais'!$D$15/100,2) -> 328.99 | K55: 2491.99
A56: 8.6 | B56: Serviços Gráficos (Equipe Produto 06) | C56: und | D56: 1 | E56: - | F56: - | G56: ='MemCalculo (AdmManutEscritorio)'!F173 -> 120 | H56: 120 | I56: 6 | J56: =TRUNC((H56+I56)*'Despesas Fiscais'!$D$15/100,2) -> 19.16 | K56: 145.16
A57: 8.7 | B57: Serviços Gráficos (Equipe Produto 07) | C57: und | D57: 1 | E57: - | F57: - | G57: ='MemCalculo (AdmManutEscritorio)'!F175 -> 5396 | H57: 5396 | I57: 269.8 | J57: =TRUNC((H57+I57)*'Despesas Fiscais'!$D$15/100,2) -> 861.76 | K57: 6527.56
A58: TOTAL(custos diretos) - OUTRAS DESPESAS (R$): | H58: =SUM(H14:H57) -> 5671872.556 | I58: =SUM(I14:I57) -> 283593.58 | J58: =SUM(J14:J57) -> 905826.23 | K58: =K13+K18+K23+K36+K41+K43+K47+K50 -> 6861292.366
A61: REMUNERAÇÃO DE ESCRITÓRIO (TAXA DE 5% DOS ITENS - OUTRAS DESPESAS): | H61: =I58 -> 283593.58
A62: DESPESAS FISCAIS (16,62% DOS ITENS Outras Despesas + Remuneração escritório): | H62: =J58 -> 905826.23
A63: CUSTOS INDIRETOS - Total (R$): | H63: =H61+H62 -> 1189419.81
A67: NOME DO INFORMANTE: | I67: QUALIFICAÇÃO:
A68: MARCIO TAGLIARI | I68: REPRESENTANTE LEGAL
A69: ASSINATURA: | J69: DATA:
J70: 2019-02-18
A71: OBSERVAÇÃO:
A72: 1. | B72: Remuneração de Escritório: Taxa de 5% incindindo sobre Salários, Encargos, Auxílio Alimentação e Custo de Administração
A73: 2. | B73: Despesas Fiscais: Taxa de 15,21% incindindo sobre Custo Total e Remuneração de Escritório
A74: 3. | B74: Preço Total = Custo total (Despesas Diretas) + Remuneração de Escritório e Despesas Fiscais (Despesas Indiretas)

Sheet Viagens e Diárias (Por Demanda)
A1: Ministério da Integração Nacional - MI
A2: Companhia de Desenvolvimento dos Vales do São Francisco e do Parnaíba
A5: CONTRATAÇÃO DOS SERVIÇOS TÉCNICOS ESPECIALIZADOS DE APOIO ÀS ATIVIDADES DA GESTÃO DO PROJETO DE INTEGRAÇÃO DO RIO SÃO FRANCISCO COM AS BACIAS HIDROGRÁFICAS DO NORDESTE SETENTRIONAL – PISF
A8: VIAGENS / DIÁRIAS
A11: ITEM | B11: DISCRIMINAÇÃO | C11: UNIDADE | D11: Nº de Viagens | E11: Número de Trechos por Viagem | F11: Nº de Meses | G11: Quant. De Trechos durante Contrato | H11: Valor Unitário por TRECHO AÉREO (R$) | I11: Previsão Total (R$)
A12: 1. | B12: VIAGENS - Trechos Aéreos e Terrestres
A13: 1.1 | B13: Trechos Aéreos | C13: und | D13: 25 | E13: 2 | F13: 18 | G13: 900 | H13: ='MemCalculo (Trecho Aéreo)'!D70 -> 806.9 | I13: =TRUNC(G13*H13,2) -> 726210
A14: Sub-Total Viagens - Passagens Aéreas (R$): | I14: =I13 -> 726210
A17: ITEM | B17: DISCRIMINAÇÃO | C17: UNIDADE | D17: Nº de Viagens | E17: Nº de Meses | F17: Quant. De Diárias Previstas | G17: Nº de Diárias | H17: Valor da Diária (R$) | I17: Previsão Total (R$)
A18: 2. | B18: DIÁRIAS
A19: 2.1 | B19: Diárias - Sede | C19: und | D19: 25 | E19: 18 | F19: 4 | G19: 1800 | H19: 120 | I19: =TRUNC(G19*H19,2) -> 216000
A20: 2.2 | B20: Diárias - Campo | C20: und | D20: 87 | E20: 18 | F20: 8 | G20: 12528 | H20: 120 | I20: =TRUNC(G20*H20,2) -> 1503360
A21: Sub-Total Diárias Nacionais (R$): | I21: =I19+I20 -> 1719360 | J21: =TRUNC(I21/(G19+G20),2) -> 120
A25: NOME DO INFORMANTE: | G25: QUALIFICAÇÃO:
A26: MARCIO TAGLIARI | G26: REPRESENTANTE LEGAL
A27: ASSINATURA: | I27: DATA:
I28: 2019-02-18
A29: OBSERVAÇÃO:
A30: 1. Os produtos serão pagos por demandas (Conforme forem sendo utilizados, mediante autorização da fiscalização)
A31: 2. O valor estimado para as passagens aéreas foi calculado conforme "MemCalculo (Trecho Aéreo)"
A32: 3. O valor adotado para a diária é o valor para localidades que não são Capitais
A33: 4. Os quantitativos foram estimados de acordo com a quantidade de pessoal lotada no campo, e baseadas na quantidade de viagens que a equipe da Codevasf utiliza.
A34: 5. Os valores previstos são o máximo que serão pagos pela Codevasf durante todo o período do contrato.

Sheet Custo Adminstração (Detalham)
A1: Ministério da Integração Nacional - MI
A2: Companhia de Desenvolvimento dos Vales do São Francisco e do Parnaíba
A5: CONTRATAÇÃO DOS SERVIÇOS TÉCNICOS ESPECIALIZADOS DE APOIO ÀS ATIVIDADES DA GESTÃO DO PROJETO DE INTEGRAÇÃO DO RIO SÃO FRANCISCO COM AS BACIAS HIDROGRÁFICAS DO NORDESTE SETENTRIONAL – PISF
A9: CUSTOS ADMINISTRAÇÃO - DETALHAMENTO
A12: DISCRIMINAÇÃO | C12: %
A13: 1 | B13: Custos da Equipe da Administração Central da Empresa Consultora (Diretoria, Pessoal Técnico de Apoio e Pessoal Administrativo não diretamente vinculado à prestação dos serviços) | C13: 0.05
A16: 2 | B16: Outras despesas que afetam o custo de produção como Treinamento, Biblioteca, Programa de Qualidade, Auditoria Interna e Externa | C16: 0.02
A19: 3 | B19: Despesas com Aluguéis, Comunicação, Manutenção e Transporte não diretamente relacionados com o custo direto dos serviços | C19: 0.01
A22: TOTAIS DO CUSTO DE ADMINISTRAÇÃO | C22: =SUM(C13:C21) -> 0.08
A24: NOME DO INFORMANTE: | C24: QUALIFICAÇÃO:
A25: MARCIO TAGLIARI | C25: REPRESENTANTE LEGAL
A26: ASSINATURA: | C26: DATA:
C27: 2019-02-18
A28: OBSERVAÇAO:

Sheet Despesas Fiscais
A1: Ministério da Integração Nacional - MI
A2: Companhia de Desenvolvimento dos Vales do São Francisco e do Parnaíba
A5: CONTRATAÇÃO DOS SERVIÇOS TÉCNICOS ESPECIALIZADOS DE APOIO ÀS ATIVIDADES DA GESTÃO DO PROJETO DE INTEGRAÇÃO DO RIO SÃO FRANCISCO COM AS BACIAS HIDROGRÁFICAS DO NORDESTE SETENTRIONAL – PISF
A9: DESPESAS FISCAIS - DETALHAMENTO
A11: DISCRIMINAÇÃO | C11: DF % | D11: DF' %
A12: 1 | B12: ISS | C12: 3.95 | D12: =C12/(1-C15/100) -> 4.550691244
A13: 2 | B13: PIS | C13: 1.65 | D13: =C13/(1-C15/100) -> 1.900921659
A14: 3 | B14: COFINS | C14: 7.6 | D14: =C14/(1-C15/100) -> 8.755760369
A15: TOTAIS DE DESPESAS FISCAIS: | C15: =SUM(C12:C14) -> 13.2 | D15: =ROUND((1/(1-C15/100)-1)*100,2) -> 15.21
A19: NOME DO INFORMANTE: | C19: QUALIFICAÇÃO:
A20: MARCIO TAGLIARI | C20: REPRESENTANTE LEGAL
A21: ASSINATURA: | D21: DATA:
D22: 2019-02-18
A23: OBSERVAÇAO:
A24: 1 - DISCRIMINAR OS TRIBUTOS QUE INCIDEM SOBRE OS CUSTOS DA PRESTAÇÃO DOS SERVIÇOS
A26: 2 - DF = INDICAR O % DE CADA TRIBUTO E A SOMA DOS MESMOS (ex: ISS 5% + PIS 1,65% + COFINS 7,60% = 14,25%)
A29: 3 - AS DESPESAS FISCAIS (DF) INCIDEM SOBRE O TOTAL DA FATURA E NÃO SOBRE OS CUSTOS INCORRIDOS, DEVENDO SER CALCULADO O DF' APLICANDO-SE A SEGUINTE FÓRMULA:
A31: DF' = { [ 1 / ( 1 - DF) ] - 1 } x 100
A32: DF' = { [ 1 / ( 1 - 0,1320 ) ] - 1 } x 100
A33: DF' = 0,1521 ou 15,21%. APLICAR O % P/ CALCULAR AS DESPESAS FISCAIS

Sheet Encargos Sociais
A1: Ministério da Integração Nacional - MI
A2: Companhia de Desenvolvimento dos Vales do São Francisco e do Parnaíba
A5: CONTRATAÇÃO DE APOIO TÉCNICO PARA ACOMPANHAMENTO DAS ATIVIDADES DA GESTÃO DO PROJETO DE INTEGRAÇÃO DO RIO SÃO FRANCISCO COM AS BACIAS HIDROGRÁFICAS DO NORDESTE SETENTRIONAL – PISF
A8: ENCARGOS SOCIAIS E TRABALHISTAS
A10: ITEM | B10: DESCRIÇÃO | C10: DISTRITO FEDERAL | F10: PERNAMBUCO
C11: Horista | D11: Mensalista | F11: Horista | G11: Mensalista
A13: GRUPO "A" | C13: % | D13: % | F13: % | G13: %
A14: A1 | B14: INSS (Art. 22 Inciso I da Lei 8.212/91) | C14: 0.2 | D14: 0.2 | F14: 0.2 | G14: 0.2
A15: A2 | B15: SESC/SESI (Art. 3° da Lei 8036/90) | C15: 0.015 | D15: 0.015 | F15: 0.015 | G15: 0.015
A16: A3 | B16: SENAC/SENAI (Decreto 2.318/86) | C16: 0.01 | D16: 0.01 | F16: 0.01 | G16: 0.01
A17: A4 | B17: INCRA (Lei 7787 de 30/06/890 e DL 1146/70) | C17: 0.002 | D17: 0.002 | F17: 0.002 | G17: 0.002
A18: A5 | B18: SEBRAE (Art. 8° Lei 8029/90 e 8154 de 28/12/90) | C18: 0.006 | D18: 0.006 | F18: 0.006 | G18: 0.006
A19: A6 | B19: Salário Educação (Art. 3° Inciso I Decreto 87.043/) | C19: 0.025 | D19: 0.025 | F19: 0.025 | G19: 0.025
A20: A7 | B20: Seguro contra Acidentes de Trabalho (Decreto 3.048/1999, Anexo V e Decreto 6.957/2009) | C20: 0.03 | D20: 0.03 | F20: 0.03 | G20: 0.03
A21: A8 | B21: FGTS (Art. 15 da Lei 8030/90 Art. 7° Inciso III CF/88) | C21: 0.08 | D21: 0.08 | F21: 0.08 | G21: 0.08
A22: A8 | B22: SECONCI | C22: 0.01 | D22: 0.01 | F22: - | G22: -
A23: TOTAL - Grupo A: | C23: =SUM(C14:C22) -> 0.378 | D23: =SUM(D14:D22) -> 0.378 | F23: =SUM(F14:F22) -> 0.368 | G23: =SUM(G14:G22) -> 0.368
A25: GRUPO "B" | C25: % | D25: % | F25: % | G25: %
A26: B1 | B26: Repouso Semanal Remunerado | C26: 0.1777 | D26: - | F26: 0.1808 | G26: -
A27: B2 | B27: Feriados | C27: 0.0341 | D27: - | F27: 0.0434 | G27: -
A28: B3 | B28: Auxílio Enfermidade | C28: 0.009 | D28: 0.007 | F28: 0.0092 | G28: 0.007
A29: B4 | B29: 13º Salário | C29: 0.1072 | D29: 0.0833 | F29: 0.1094 | G29: 0.0833
A30: B5 | B30: Licença Paternidade | C30: 0.0006 | D30: 0.0005 | F30: 0.0007 | G30: 0.0005
A31: B6 | B31: Faltas Justificadas | C31: 0.0071 | D31: 0.0056 | F31: 0.0073 | G31: 0.0056
A32: B7 | B32: Dias de Chuva | C32: 0.0142 | D32: - | F32: 0.0228 | G32: -
A33: B8 | B33: Auxílio Acidente de Trabalho | C33: 0.0011 | D33: 0.0008 | F33: 0.0011 | G33: 0.0008
A34: B9 | B34: Férias Gozadas | C34: 0.0812 | D34: 0.0631 | F34: 0.089 | G34: 0.0678
A35: B10 | B35: Salário Maternidade | C35: 0.0003 | D35: 0.0002 | F35: 0.0003 | G35: 0.0002
A36: TOTAL - Grupo B: | C36: =SUM(C26:C35) -> 0.4325 | D36: =SUM(D26:D35) -> 0.1605 | F36: =SUM(F26:F35) -> 0.464 | G36: =SUM(G26:G35) -> 0.1652
A38: GRUPO "C" | C38: % | D38: % | F38: % | G38: %
A39: C1 | B39: Aviso Prévio Indenizado | C39: 0.0519 | D39: 0.0404 | F39: 0.0565 | G39: 0.0431
A40: C2 | B40: Aviso Prévio Trabalhado | C40: 0.0012 | D40: 0.001 | F40: 0.0013 | G40: 0.001
A41: C3 | B41: Férias Indenizadas | C41: 0.0524 | D41: 0.0408 | F41: 0.0508 | G41: 0.0387
A42: C4 | B42: Depósito Rescisão sem Justa Causa | C42: 0.0498 | D42: 0.0388 | F42: 0.0506 | G42: 0.0385
A43: C5 | B43: Indenização Adicional | C43: 0.0044 | D43: 0.0034 | F43: 0.0048 | G43: 0.0036
A44: TOTAL - Grupo C: | C44: =SUM(C39:C43) -> 0.1597 | D44: =SUM(D39:D43) -> 0.1244 | F44: =SUM(F39:F43) -> 0.164 | G44: =SUM(G39:G43) -> 0.1249
A46: GRUPO "D" | C46: % | D46: % | F46: % | G46: %
A47: D1 | B47: Reincidência de Grupo A sobre Grupo B | C47: =C23*C36 -> 0.163485 | D47: =D23*D36 -> 0.060669 | F47: =F23*F36 -> 0.170752 | G47: =G23*G36 -> 0.0607936
A48: D2 | B48: Reincidência de Grupo A sobre C2 e Reincidência de A8 sobre C1 | C48: =(C23*C40)+(C21*C39) -> 0.0046056 | D48: =(D23*D40)+(D21*D39) -> 0.00361 | F48: =(F23*F40)+(F21*F39) -> 0.0049984 | G48: =(G23*G40)+(G21*G39) -> 0.003816
A49: TOTAL - Grupo D: | C49: =ROUND(C47+C48,4) -> 0.1681 | D49: =ROUND(D47+D48,4) -> 0.0643 | F49: =ROUND(F47+F48,4) -> 0.1758 | G49: =ROUND(G47+G48,4) -> 0.0646
A51: QUADRO-RESUMO: ENCARGOS SOCIAIS E TRABALHISTAS | C51: % | D51: % | F51: % | G51: %
A52: GRUPO "A" | C52: =C23 -> 0.378 | D52: =D23 -> 0.378 | F52: =F23 -> 0.368 | G52: =G23 -> 0.368
A53: GRUPO "B" | C53: =C36 -> 0.4325 | D53: =D36 -> 0.1605 | F53: =F36 -> 0.464 | G53: =G36 -> 0.1652
A54: GRUPO "C" | C54: =C44 -> 0.1597 | D54: =D44 -> 0.1244 | F54: =F44 -> 0.164 | G54: =G44 -> 0.1249
A55: GRUPO "D" | C55: =C49 -> 0.1681 | D55: =D49 -> 0.0643 | F55: =F49 -> 0.1758 | G55: =G49 -> 0.0646
A56: TOTAL - Encargos Sociais e Trabalhistas: | C56: =ROUND(SUM(C52:C55),4) -> 1.1383 | D56: =ROUND(SUM(D52:D55),4) -> 0.7272 | F56: =ROUND(SUM(F52:F55),4) -> 1.1718 | G56: =ROUND(SUM(G52:G55),4) -> 0.7227
A59: NOME DO INFORMANTE: | E59: QUALIFICAÇÃO:
A60: MARCIO TAGLIARI | E60: REPRESENTANTE LEGAL
A61: ASSINATURA: | E61: DATA:
E62: 2019-02-18
A63: OBSERVAÇÃO:
A64: 1. | B64: Fonte: CAIXA ECONÔMICA FEDERAL
A65: 2. | B65: Os percentuais dos Encargos Previdenciários e FGTS, a serem preenchidos na coluna %, são aqueles estabelecidos pela legislação vigente, incidentes sobre a remuneração

Sheet Cronograma Físico-Financeiro
A1: Ministério da Integração Nacional - MI
A2: Companhia de Desenvolvimento dos Vales do São Francisco e do Parnaíba
A4: CONTRATAÇÃO DOS SERVIÇOS TÉCNICOS ESPECIALIZADOS DE APOIO ÀS ATIVIDADES DA GESTÃO DO PROJETO DE INTEGRAÇÃO DO RIO SÃO FRANCISCO COM AS BACIAS HIDROGRÁFICAS DO NORDESTE SETENTRIONAL - PISF
A6: CRONOGRAMA FÍSICO-FINANCEIRO
A8: ITEM | B8: DESCRIÇÃO- PRODUTOS | D8: PRAZO (mês) | E8: PREÇO (R$) | F8: MÊS
F9: 1º | G9: 2º | H9: 3º | I9: 4º | J9: 5º | K9: 6º | L9: 7º | M9: 8º | N9: 9º | O9: 10º | P9: 11º | Q9: 12º | R9: 13º | S9: 14º | T9: 15º | U9: 16º | V9: 17º | W9: 18º | X9: 19º | Y9: 20º
A11: 4 | B11: MOBILIZAÇÃO | D11: 1 | E11: ='Resumo Total'!C23 -> 47189.25 | F11: X
F12: =E11 -> 47189.25
A14: 4 | B14: DESMOBILIZAÇÃO | D14: 1 | E14: ='Resumo Total'!C24 -> 66711.47 | Y14: X
Y15: =E14 -> 66711.47
B17: ADMINISTRAÇÃO / MANUTENÇÃO DE ESCRITÓRIO | D17: 18 | E17: =SUM('Resumo Total'!C25:C30) -> 3885483.446 | G17: X | H17: X | I17: X | J17: X | K17: X | L17: X | M17: X | N17: X | O17: X | P17: X | Q17: X | R17: X | S17: X | T17: X | U17: X | V17: X | W17: X | X17: X
G18: =E17*0.0565 -> 219529.8147 | H18: =$E$17*0.0555 -> 215644.3312 | I18: =$E$17*0.0555 -> 215644.3312 | J18: 215644.3312 | K18: 215644.3312 | L18: 215644.3312 | M18: 215644.3312 | N18: 215644.3312 | O18: 215644.3312 | P18: 215644.3312 | Q18: 215644.3312 | R18: 215644.3312 | S18: 215644.3312 | T18: 215644.3312 | U18: 215644.3312 | V18: 215644.3312 | W18: 215644.3312 | X18: 215644.3312
A20: 5.1 | B20: APOIO A GESTÃO E ATIVIDADES TÉCNICAS ESPECIALIZADAS, ACOMPANHAMENTO DE COMISIONAMENTOS, TESTES E PRÉ-OPERAÇÃO / ESTUDO E COLETA DE DADOS DA IMPLANTAÇÃO DO PROJETO / PLANO DE SEGURANÇA E SAÚDE DO TRABALHO | D20: 18 | E20: ='Resumo Total'!C15+'Outras Despesas (Adm_Manut)'!K51 -> 22992208.55 | G20: X | H20: X | I20: X | J20: X | K20: X | L20: X | M20: X | N20: X | O20: X | P20: X | Q20: X | R20: X | S20: X | T20: X | U20: X | V20: X | W20: X | X20: X
G21: =E20*0.0745 -> 1712919.537 | H21: =$E$20*0.0714 -> 1641643.69 | I21: =$E$20*0.0814 -> 1871565.776 | J21: =$E$20*0.0631 -> 1450808.36 | K21: =$E$20*0.0931 -> 2140574.616 | L21: =$E$20*0.0631 -> 1450808.36 | M21: =$E$20*0.0631 -> 1450808.36 | N21: =$E$20*0.0631 -> 1450808.36 | O21: =$E$20*0.0631 -> 1450808.36 | P21: =$E$20*0.1231 -> 2830340.873 | Q21: =$E$20*0.0299 -> 687467.0356 | R21: =$E$20*0.0299 -> 687467.0356 | S21: =$E$20*0.0299 -> 687467.0356 | T21: =$E$20*0.0449 -> 1032350.164 | U21: =$E$20*0.0216 -> 496631.7047 | V21: =$E$20*0.0216 -> 496631.7047 | W21: =$E$20*0.0216 -> 496631.7047 | X21: =$E$20*0.0416 -> 956475.8757
A23: 5.2 | B23: PLANEJAMENTO DE AÇÕES E MARCOS ESTRATÉGICOS | D23: 18 | E23: ='Mao de Obra'!C57+'Outras Despesas (Adm_Manut)'!K52 -> 893062.82 | G23: X | H23: X | I23: X | J23: X | K23: X | L23: X | M23: X | N23: X | O23: X | P23: X | Q23: X | R23: X | S23: X | T23: X | U23: X | V23: X | W23: X | X23: X
G24: =$E$23*0.0202 -> 18039.86896 | H24: =$E$23*0.0404 -> 36079.73793 | I24: =$E$23*0.0492 -> 43938.69074 | J24: =$E$23*0.081 -> 72338.08842 | K24: =$E$23*0.0924 -> 82519.00457 | L24: =$E$23*0.1012 -> 90377.95738 | M24: =$E$23*0.0694 -> 61978.55971 | N24: =$E$23*0.0722 -> 64479.1356 | O24: =$E$23*0.0492 -> 43938.69074 | P24: =$E$23*0.0404 -> 36079.73793 | Q24: =$E$23*0.052 -> 46439.26664 | R24: =$E$23*0.0492 -> 43938.69074 | S24: =$E$23*0.0404 -> 36079.73793 | T24: =$E$23*0.0492 -> 43938.69074 | U24: =$E$23*0.0492 -> 43938.69074 | V24: =$E$23*0.0404 -> 36079.73793 | W24: =$E$23*0.0404 -> 36079.73793 | X24: =$E$23*0.0636 -> 56798.79535
A26: 5.3 | B26: PLANO DE COMUNICAÇÃO SOCIAL | D26: 3 | E26: ='Resumo Total'!C17+'Outras Despesas (Adm_Manut)'!K53 -> 351426.86 | Q26: X | R26: X | S26: X
Q27: =E26*0.32 -> 112456.5952 | R27: =E26*0.32 -> 112456.5952 | S27: =E26*0.36 -> 126513.6696
A29: 5.4 | B29: ESTRATÉGIA DE OFERTA E DEMANDA | D29: 12 | E29: ='Resumo Total'!C18+'Outras Despesas (Adm_Manut)'!K54 -> 2254051.31 | G29: X | H29: X | I29: X | J29: X | K29: X | L29: X | M29: Aquisição de Software pela CONTRATANTE | S29: 14º | T29: 15º | U29: 16º | V29: 17º | W29: 18º | X29: 19º
G30: =$E$29*0.08 -> 180324.1048 | H30: =$E$29*0.08 -> 180324.1048 | I30: 180324.1048 | J30: 180324.1048 | K30: 180324.1048 | L30: =$E$29*0.1 -> 225405.131 | S30: =$E$29*0.08 -> 180324.1048 | T30: =$E$29*0.08 -> 180324.1048 | U30: 180324.1048 | V30: 180324.1048 | W30: 180324.1048 | X30: =$E$29*0.1 -> 225405.131
A32: 5.5 | B32: GESTÃO DE ATIVOS PATRIMONIAIS | D32: 12 | E32: ='Resumo Total'!C20+'Outras Despesas (Adm_Manut)'!K56 -> 2686942.4 | G32: X | H32: X | I32: X | J32: X | K32: X | L32: X | M32: Aquisição de Software pela CONTRATANTE | S32: 14º | T32: 15º | U32: 16º | V32: 17º | W32: 18º | X32: 19º
G33: =$E$32*0.08 -> 214955.392 | H33: 214955.392 | I33: 214955.392 | J33: 214955.392 | K33: 214955.392 | L33: =$E$32*0.1 -> 268694.24 | S33: =$E$32*0.08 -> 214955.392 | T33: =$E$32*0.08 -> 214955.392 | U33: 214955.392 | V33: 214955.392 | W33: 214955.392 | X33: =$E$32*0.1 -> 268694.24
A35: 5.7 | B35: APOIO TÉCNICO-ADMINISTRATIVO | D35: 18 | E35: ='Resumo Total'!C21+'Outras Despesas (Adm_Manut)'!K57 -> 7466195.03 | G35: X | H35: X | I35: X | J35: X | K35: X | L35: X | M35: X | N35: X | O35: X | P35: X | Q35: X | R35: X | S35: X | T35: X | U35: X | V35: X | W35: X | X35: X
G36: =$E$35*0.055 -> 410640.7267 | H36: =$E$35*0.055 -> 410640.7267 | I36: 410640.7267 | J36: 410640.7267 | K36: 410640.7267 | L36: 410640.7267 | M36: 410640.7267 | N36: 410640.7267 | O36: 410640.7267 | P36: 410640.7267 | Q36: 410640.7267 | R36: 410640.7267 | S36: 410640.7267 | T36: 410640.7267 | U36: 410640.7267 | V36: 410640.7267 | W36: 410640.7267 | X36: =$E$35*0.065 -> 485302.677
A38: TOTAL MENSAL (R$) | D38: 18 | E38: =SUM(E11:E36) -> 40643271.14 | F38: X | G38: X | H38: X | I38: X | J38: X | K38: X | L38: X | M38: X | N38: X | O38: X | P38: X | Q38: X | R38: X | S38: X | T38: X | U38: X | V38: X | W38: X | X38: X | Y38: X
F39: =F12+F15+F18+F21+F24+F27+F30+F33+F36 -> 47189.25 | G39: =G12+G15+G18+G21+G24+G27+G30+G33+G36 -> 2756409.444 | H39: =H12+H15+H18+H21+H24+H27+H30+H33+H36 -> 2699287.983 | I39: 2937069.021 | J39: 2544711.003 | K39: 3244658.175 | L39: 2661570.746 | M39: 2139071.977 | N39: 2141572.553 | O39: 2121032.108 | P39: 3492705.668 | Q39: 1472647.955 | R39: 1470147.379 | S39: 1871624.998 | T39: 2097853.409 | U39: 1562134.95 | V39: 1554275.997 | W39: 1554275.997 | X39: 2208321.05 | Y39: 66711.47
A41: PAGAMENTO POR DEMANDA | F41: TOTAL DA PROPOSTA
A43: PRODUTOS PAGOS POR DEMANDA | F43: VALOR TOTAL DA PROPOSTA
A44: Planejamento de Ações e Marcos Estratégicos | C44: ='Mao de Obra'!D57 -> 1001939.34 | F44: A | G44: Pagamentos - Mensal | J44: =E38 -> 40643271.14
A45: Estudos e Simulações Elétricas | C45: ='Resumo Total'!C19+'Outras Despesas (Adm_Manut)'!K55 -> 296371.28 | F45: B | G45: Pagamentos - Por Demanda | J45: =C47 -> 4256728.86
A46: Viagens / Diárias (Pagas por Demanda) | C46: ='Resumo Total'!C32 -> 2958418.24 | F46: TOTAL GERAL (R$) | J46: =J44+J45 -> 44900000
A47: VALOR TOTAL A SER PAGO POR DEMANDA (R$) | C47: =SUM(C44:C46) -> 4256728.86
A49: NOTA: O VALOR DOS PRODUTOS (5.1 A 5.7) INCLUI OS SERVIÇOS GRÁFICOS

Sheet MemCalculo (Trecho Aéreo)
A1: Ministério da Integração Nacional - MI
A2: Companhia de Desenvolvimento dos Vales do São Francisco e do Parnaíba
A5: CONTRATAÇÃO DE APOIO TÉCNICO PARA ACOMPANHAMENTO DAS ATIVIDADES DA GESTÃO DO PROJETO DE INTEGRAÇÃO DO RIO SÃO FRANCISCO COM AS BACIAS HIDROGRÁFICAS DO NORDESTE SETENTRIONAL – PISF
A8: MEMORIAL DE CÁLCULO - PASSAGENS AÉREAS
A10: COTAÇÕES DE PASSAGENS AÉREAS
A11: Processo: | B11: Pré Operação PISF
A12: Data da Pesquisa: | B12: 17/07/2018 (www.decolar.com para vizualizar menores preços e companhias aéreas para registro do preço)
A13: Período Pesquisado: | B13: 1ª Semana de Agosto/2018
A15: Taxas Aeroportuárias:
A16: Cidade/Aeroporto | B16: Valor da Taxa
A17: Brasília (BSB) | B17: 28.03
A18: São Paulo (GRU) | B18: 29.53
A19: Rio de Janeiro (GIG) | B19: 30.35 | E19: Valor Médio do Trecho da Passagem Aérea: | I19: =D70 -> 806.9
A20: Curitiba (CWB) | B20: 29.9
A21: Salvador (SSA) | B21: 29.78
A22: Porto Alegre (POA) | B22: 29.78
A23: Recife (REC) | B23: 31.27
A24: Petrolina (PNZ) | B24: 24.57
A25: Juazeiro do Norte (JDO) | B25: 24.57
A27: IDA: Base de Pesquisa Agosto/2018
A28: TRECHO | B28: Passagens Aéreas | C28: Taxas | D28: Valor Unitário
B29: Menor Valor
A30: BSB - REC | B30: 426.9 | C30: =B17 -> 28.03 | D30: =B30+C30 -> 454.93
A31: BSB - JDO | B31: 662.8 | C31: =B17 -> 28.03 | D31: 690.83
A32: BSB - PNZ | B32: 885 | C32: =B17 -> 28.03 | D32: 913.03
A33: CWB - JDO | B33: 1152.8 | C33: =B20 -> 29.9 | D33: 1182.7
A34: CWB - PNZ | B34: 964.8 | C34: =B20 -> 29.9 | D34: 994.7
A35: CWB - REC | B35: 1376.8 | C35: =B20 -> 29.9 | D35: 1406.7
A36: GIG - JDO | B36: 1114 | C36: =B19 -> 30.35 | D36: 1144.35
A37: GIG - PNZ | B37: 1533.8 | C37: =B19 -> 30.35 | D37: =B37+C37 -> 1564.15
A38: GIG - REC | B38: 1129 | C38: =B19 -> 30.35 | D38: 1159.35
A39: GRU - JDO | B39: 1027.3 | C39: =B18 -> 29.53 | D39: 1056.83
A40: GRU - PNZ | B40: 1341.89 | C40: =B18 -> 29.53 | D40: 1371.42
A41: GRU - REC | B41: 482 | C41: =B18 -> 29.53 | D41: 511.53
A42: JDO - BSB | B42: 662.8 | C42: =B25 -> 24.57 | D42: 687.37
A43: JDO - CWB | B43: 861.9 | C43: =B25 -> 24.57 | D43: 886.47
A44: JDO - GIG | B44: 878.9 | C44: =B25 -> 24.57 | D44: 903.47
A45: JDO - GRU | B45: 765 | C45: =B25 -> 24.57 | D45: 789.57
A46: JDO - POA | B46: 925 | C46: =B25 -> 24.57 | D46: 949.57
A47: JDO - REC | B47: 1013.8 | C47: =B25 -> 24.57 | D47: 1038.37
A48: JDO - SSA | B48: 969 | C48: =B25 -> 24.57 | D48: 993.57
A49: PNZ - BSB | B49: 885 | C49: =B24 -> 24.57 | D49: 909.57
A50: PNZ - CWB | B50: 822.9 | C50: =B24 -> 24.57 | D50: 847.47
A51: PNZ - GIG | B51: 955.8 | C51: =B24 -> 24.57 | D51: 980.37
A52: PNZ - GRU | B52: 805 | C52: =B24 -> 24.57 | D52: 829.57
A53: PNZ - POA | B53: 975.9 | C53: =B24 -> 24.57 | D53: 1000.47
A54: PNZ - REC | B54: 312.9 | C54: =B24 -> 24.57 | D54: 337.47
A55: PNZ - SSA | B55: 399 | C55: =B24 -> 24.57 | D55: 423.57
A56: POA - JDO | B56: 1138.8 | C56: =B22 -> 29.78 | D56: 1168.58
A57: POA - PNZ | B57: 970.9 | C57: =B22 -> 29.78 | D57: 1000.68
A58: POA - REC | B58: 859 | C58: =B22 -> 29.78 | D58: 888.78
A59: REC - BSB | B59: 322.8 | C59: =B23 -> 31.27 | D59: 354.07
A60: REC - CWB | B60: 699.8 | C60: =B23 -> 31.27 | D60: 731.07
A61: REC - GIG | B61: 257.9 | C61: =B23 -> 31.27 | D61: 289.17
A62: REC - GRU | B62: 482 | C62: =B23 -> 31.27 | D62: 513.27
A63: REC - JDO | B63: 793.8 | C63: =B23 -> 31.27 | D63: 825.07
A64: REC - PNZ | B64: 289 | C64: =B23 -> 31.27 | D64: 320.27
A65: REC - POA | B65: 677.8 | C65: =B23 -> 31.27 | D65: 709.07
A66: REC - SSA | B66: 175 | C66: =B23 -> 31.27 | D66: 206.27
A67: SSA - JDO | B67: 579 | C67: =B21 -> 29.78 | D67: 608.78
A68: SSA - PNZ | B68: 399 | C68: =B21 -> 29.78 | D68: 428.78
A69: SSA - REC | B69: 175 | C69: =B21 -> 29.78 | D69: 204.78
A70: VALOR POR TRECHO AÉREO: | D70: =TRUNC(SUM(D30:D69)/40,2) -> 806.9

Sheet MemCalculo (AdmManutEscritorio)
A1: Ministério da Integração Nacional - MI
A2: Companhia de Desenvolvimento dos Vales do São Francisco e do Parnaíba
A4: CONTRATAÇÃO DE APOIO TÉCNICO PARA ACOMPANHAMENTO DAS ATIVIDADES DA GESTÃO DO PROJETO DE INTEGRAÇÃO DO RIO SÃO FRANCISCO COM AS BACIAS HIDROGRÁFICAS DO NORDESTE SETENTRIONAL – PISF
A7: MEMORIAL DE CÁLCULO - ADMINISTRAÇÃO E MANUTENÇÃO DE ESCRITÓRIOS
A8: COMPOSIÇÃO DE PREÇO UNITÁRIO | E8: PRAZO (MÊS): | F8: 18
A9: ESCRITÓRIOS DE APOIO LOGÍSTICO / ESCRITÓRIOS CENTRAIS (BSB-SLZ)
A12: ITEM | B12: DISCRIMINAÇÃO | C12: UNIDADE | D12: QUANT. | E12: Valor Unitário | F12: Valor Total
A13: 1. | B13: Material de Escritório - Central
A14: 1.10 | B14: Caneta Esfereográfica Azul | C14: und x mês | D14: 15 | E14: 0.34 | F14: =TRUNC(D14*E14,2) -> 5.1
A15: 1.11 | B15: Capa para Encadernação Azul | C15: und x mês | D15: 50 | E15: 0.28 | F15: =TRUNC(D15*E15,2) -> 14
A16: 1.12 | B16: Capa para Encadernação Transparente | C16: und x mês | D16: 50 | E16: 0.28 | F16: =TRUNC(D16*E16,2) -> 14
A17: 1.13 | B17: Cartucho Colorido para Impressora | C17: und x mês | D17: 8 | E17: 31.5 | F17: 252
A18: 1.14 | B18: Cartucho Preto para Impressora | C18: und x mês | D18: 8 | E18: 30.7 | F18: 245.6
A19: 1.15 | B19: CD RW | C19: und x mês | D19: 100 | E19: 1.01 | F19: 101
A20: 1.16 | B20: Classificador Elástico | C20: und x mês | D20: 100 | E20: 2.2 | F20: 220
A21: 1.17 | B21: Clips nº 00 (caixa) | C21: und x mês | D21: 15 | E21: 1.28 | F21: 19.2
A22: 1.18 | B22: Clips nº 02 (caixa) | C22: und x mês | D22: 15 | E22: 1.15 | F22: 17.25
A23: 1.19 | B23: Clips nº 04 (caixa) | C23: und x mês | D23: 15 | E23: 1.15 | F23: 17.25
A24: 1.20 | B24: Clips nº 06 (caixa) | C24: und x mês | D24: 15 | E24: 2.14 | F24: 32.1
A25: 1.21 | B25: Clips nº 08 (caixa) | C25: und x mês | D25: 15 | E25: 1.27 | F25: 19.05
A26: 1.22 | B26: Cola tenaz | C26: und x mês | D26: 5 | E26: 1.9 | F26: 9.5
A27: 1.23 | B27: Corretivo a Base D'agua 18 ml | C27: und x mês | D27: 10 | E27: 0.78 | F27: 7.8
A28: 1.24 | B28: Envelope de Papel Tamanho Grande - 40 cm | C28: und x mês | D28: 100 | E28: 0.28 | F28: 28
A29: 1.25 | B29: Envelope de Papel Tamanho Médio - 35 cm | C29: und x mês | D29: 100 | E29: 0.2 | F29: 20
A30: 1.26 | B30: Espiral 7mm | C30: und x mês | D30: 20 | E30: 0.05 | F30: 1
A31: 1.27 | B31: Espiral 9mm | C31: und x mês | D31: 30 | E31: 0.1 | F31: 3
A32: 1.28 | B32: Estilete | C32: und x mês | D32: 4 | E32: 0.8 | F32: 3.2
A33: 1.29 | B33: Fita Adesiva | C33: und x mês | D33: 4 | E33: 0.6 | F33: 2.4 | G33: ='MemCalculo (AdmManutEscritorio)'!F8 -> 18
A34: 1.30 | B34: Fita Adesiva Transparente | C34: und x mês | D34: 4 | E34: 2.5 | F34: 10
A35: 1.31 | B35: Fita Crepe Branca 45 x 50m | C35: und x mês | D35: 4 | E35: 6.8 | F35: 27.2
A36: 1.32 | B36: Grampeador 26/6 | C36: und x mês | D36: 0.4444444444 | E36: 6.2 | F36: 2.75
A37: 1.33 | B37: Grampeador 23/6 | C37: und x mês | D37: 0.1111111111 | E37: 41.2 | F37: 4.57
A38: 1.34 | B38: Grampo 26/6 (caixa) | C38: und x mês | D38: 1 | E38: 1.13 | F38: 1.13
A39: 1.35 | B39: Grampo 23/6 (caixa) | C39: und x mês | D39: 0.5 | E39: 1.14 | F39: 0.57
A40: 1.36 | B40: Grampo Tipo Trilho (caixa) | C40: und x mês | D40: 20 | E40: 7.6 | F40: 152
A41: 1.37 | B41: Lápis Grafite | C41: und x mês | D41: 40 | E41: 0.2 | F41: 8
A42: 1.38 | B42: Lapiseira 0,5mm | C42: und x mês | D42: 15 | E42: 2.83 | F42: 42.45
A43: 1.39 | B43: Lapiseira 0,7mm | C43: und x mês | D43: 15 | E43: 2.8 | F43: 42
A44: 1.40 | B44: Livro de Ata com 100 páginas numeradas | C44: und x mês | D44: 2 | E44: 8.2 | F44: 16.4
A45: 1.41 | B45: Livro de Ocorrência 50 páginas (três vias) | C45: und x mês | D45: 2 | E45: 18.7 | F45: 37.4
A46: 1.42 | B46: Marca Texto | C46: und x mês | D46: 20 | E46: 0.84 | F46: 16.8
A47: 1.43 | B47: Mina Grafite 05mm c 12 unidades | C47: und x mês | D47: 15 | E47: 0.6 | F47: 9
A48: 1.44 | B48: Mina Grafite 07mm c 12 unidades | C48: und x mês | D48: 15 | E48: 0.68 | F48: 10.2
A49: 1.45 | B49: Pasta Arquivo | C49: und x mês | D49: 17 | E49: 0.44 | F49: 7.48
A50: 1.46 | B50: Pasta Suspensa | C50: und x mês | D50: 17 | E50: 0.97 | F50: 16.49
A51: 1.47 | B51: Régua 30 cm | C51: und x mês | D51: 2.5 | E51: 0.42 | F51: 1.05
A52: 1.48 | B52: Resma Papel A4 | C52: und x mês | D52: 40 | E52: 13.5 | F52: 540
A53: 1.49 | B53: Bobina Papel para Ploter A0 | C53: und x mês | D53: 8 | E53: 25.1 | F53: 200.8
A54: 1.50 | B54: Tinta para Carimbo | C54: und x mês | D54: 1 | E54: 1.9 | F54: 1.9
A55: MATERIAL DE ESCRITÓRIO CENTRAL - VALOR MENSAL (R$): | F55: =SUM(F14:F54) -> 2179.64
A57: 2. | B57: Equipamentos / Material de Escritório - Apoio logístico
A58: 2.1 | B58: Conjunto Microcomputador | C58: und x mês | D58: 0.05555555556 | E58: 1264 | F58: =TRUNC(D58*E58,2) -> 70.22
A59: 2.2 | B59: Impressora Multifuncional (Impressora+Scanner+Copiadora) | C59: und x mês | D59: 0.05555555556 | E59: 160.64 | F59: =TRUNC(D59*E59,2) -> 8.92
A60: 2.3 | B60: Caneta Esfereográfica Azul | C60: und x mês | D60: 10 | E60: 0.34 | F60: =TRUNC(D60*E60,2) -> 3.4
A61: 2.4 | B61: Cartucho Colorido para Impressora | C61: und x mês | D61: 2 | E61: 31.5 | F61: 63
A62: 2.5 | B62: Cartucho Preto para Impressora | C62: und x mês | D62: 2 | E62: 30.7 | F62: 61.4
A63: 2.6 | B63: CD RW | C63: und x mês | D63: 30 | E63: 1.02 | F63: 30.6
A64: 2.7 | B64: Clips nº 00 (caixa) | C64: und x mês | D64: 2 | E64: 1.28 | F64: 2.56
A65: 2.8 | B65: Clips nº 02 (caixa) | C65: und x mês | D65: 2 | E65: 1.15 | F65: 2.3
A66: 2.9 | B66: Clips nº 08 (caixa) | C66: und x mês | D66: 1 | E66: 1.27 | F66: 1.27
A67: 2.10 | B67: Cola Tenaz | C67: und x mês | D67: 5 | E67: 1.9 | F67: 9.5
A68: 2.11 | B68: Corretivo a Base D'agua 18 ml | C68: und x mês | D68: 1 | E68: 0.78 | F68: 0.78
A69: 2.12 | B69: Envelope de Papel Tamanho Grande - 40 cm | C69: und x mês | D69: 20 | E69: 0.28 | F69: 5.6
A70: 2.13 | B70: Envelope de Papel Tamanho Médio - 35 cm | C70: und x mês | D70: 30 | E70: 0.2 | F70: 6
A71: 2.14 | B71: Fita Adesiva | C71: und x mês | D71: 1 | E71: 0.6 | F71: 0.6
A72: 2.15 | B72: Grampeador 26/6 | C72: und x mês | D72: 0.4444444444 | E72: 6.24 | F72: 2.77
A73: 2.16 | B73: Grampeador 23/6 | C73: und x mês | D73: 0.1111111111 | E73: 41.2 | F73: 4.57
A74: 2.17 | B74: Grampo 26/6 (caixa) | C74: und x mês | D74: 1 | E74: 1.13 | F74: 1.13
A75: 2.18 | B75: Grampo 23/6 (caixa) | C75: und x mês | D75: 0.25 | E75: 1.14 | F75: 0.28
A76: 2.19 | B76: Lápis Grafite | C76: und x mês | D76: 10 | E76: 0.2 | F76: 2
A77: 2.20 | B77: Marca Texto | C77: und x mês | D77: 3 | E77: 0.84 | F77: 2.52
A78: 2.21 | B78: Régua 30 cm | C78: und x mês | D78: 1 | E78: 0.42 | F78: 0.42
A79: 2.22 | B79: Resma Papel A4 | C79: und x mês | D79: 8 | E79: 13.5 | F79: 108
A80: MATERIAL DE ESCRITÓRIO CENTRAL - VALOR MENSAL (R$): | F80: =SUM(F58:F79) -> 387.84
A82: 3. | B82: Material Higiene / Limpeza - Escritorio Central
A83: 3.1 | B83: Açucar | C83: kg | D83: 20 | E83: 3.34 | F83: =TRUNC(D83*E83,2) -> 66.8
A84: 3.2 | B84: Água Mineral (20 litros) | C84: garraf | D84: 154 | E84: 7.19 | F84: =TRUNC(D84*E84,2) -> 1107.26
A85: 3.3 | B85: Água Sanitária 1000 ml | C85: Unid. | D85: 16 | E85: 2 | F85: =TRUNC(D85*E85,2) -> 32
A86: 3.4 | B86: Café Torrado e Moído | C86: kg | D86: 16 | E86: 12 | F86: 192
A87: 3.5 | B87: Cera Líquida 1000 ml | C87: Unid. | D87: 4 | E87: 6.85 | F87: 27.4
A88: 3.6 | B88: Copo Descartável 200 ml (Pacote 50 und) | C88: und x mês | D88: 40 | E88: 2.18 | F88: 87.2
A89: 3.7 | B89: Copo Descartável 50 ml (Pacote 50 und) | C89: und x mês | D89: 40 | E89: 0.75 | F89: 30
A90: 3.8 | B90: Desinfetante | C90: Unid. | D90: 8 | E90: 1.53 | F90: 12.24
A91: 3.9 | B91: Álcool | C91: Unid. | D91: 8 | E91: 4.85 | F91: 38.8
A92: 3.10 | B92: Detergente 500ml | C92: Unid. | D92: 8 | E92: 1.24 | F92: 9.92
A93: 3.11 | B93: Esponja de Prato | C93: Unid. | D93: 8 | E93: 0.3 | F93: 2.4
A94: 3.12 | B94: Flanela | C94: Unid. | D94: 10 | E94: 0.58 | F94: 5.8
A95: 3.13 | B95: Pacote de Lã de Aço 60 g | C95: Unid. | D95: 2 | E95: 1.06 | F95: 2.12
A96: 3.14 | B96: Pano de Chão | C96: Unid. | D96: 8 | E96: 2.67 | F96: 21.36
A97: 3.15 | B97: Papel Toalha | C97: rolo | D97: 6 | E97: 1.07 | F97: 6.42
A98: 3.16 | B98: Pano de Prato | C98: Unid. | D98: 5 | E98: 1.38 | F98: 6.9
A99: 3.17 | B99: Rolos de Papel Higiênico | C99: rolo | D99: 120 | E99: 0.47 | F99: 56.4
A100: 3.18 | B100: Sabão em Pó 500g | C100: Unid. | D100: 8 | E100: 2.95 | F100: 23.6
A101: 3.19 | B101: Rodo de Borracha | C101: Unid. | D101: 5 | E101: 3.5 | F101: 17.5
A102: 3.20 | B102: Vassoura | C102: Unid. | D102: 3 | E102: 4.24 | F102: 12.72
A103: 3.21 | B103: Sabonetes 90 g | C103: Unid. | D103: 10 | E103: 0.85 | F103: 8.5
A104: MATERIAL DE ESCRITÓRIO CENTRAL - VALOR MENSAL (R$): | F104: =SUM(F83:F103) -> 1767.34
A106: 4. | B106: Material Higiene / Limpeza - Escritorio Apoio Logistico
A107: 4.1 | B107: Açucar | C107: kg | D107: 5 | E107: 3.34 | F107: =TRUNC(D107*E107,2) -> 16.7
A108: 4.2 | B108: Água Mineral (20 litros) | C108: garraf | D108: 5 | E108: 7.26 | F108: =TRUNC(D108*E108,2) -> 36.3
A109: 4.3 | B109: Água Sanitária 1000 ml | C109: Unid. | D109: 1 | E109: 2 | F109: =TRUNC(D109*E109,2) -> 2
A110: 4.4 | B110: Café Torrado e Moído | C110: kg | D110: 4 | E110: 12 | F110: 48
A111: 4.5 | B111: Cera Líquida 1000 ml | C111: Unid. | D111: 1 | E111: 6.85 | F111: 6.85
A112: 4.6 | B112: Copo Descartável 200 ml (Pacote 50 und) | C112: und x mês | D112: 2 | E112: 2.18 | F112: 4.36
A113: 4.7 | B113: Copo Descartável 50 ml (Pacote 50 und) | C113: und x mês | D113: 2 | E113: 0.75 | F113: 1.5
A114: 4.8 | B114: Desinfetante 500ml | C114: Unid. | D114: 2 | E114: 1.53 | F114: 3.06
A115: 4.9 | B115: Álcool | C115: Unid. | D115: 2 | E115: 4.85 | F115: 9.7
A116: 4.10 | B116: Detergente 500ml | C116: Unid. | D116: 2 | E116: 1.24 | F116: 2.48
A117: 4.11 | B117: Esponja de Prato | C117: Unid. | D117: 1 | E117: 0.3 | F117: 0.3
A118: 4.12 | B118: Flanela | C118: Unid. | D118: 2 | E118: 0.58 | F118: 1.16
A119: 4.13 | B119: Pacote de Lã de Aço 60 g | C119: Unid. | D119: 4 | E119: 1.06 | F119: 4.24
A120: 4.14 | B120: Pano de Chão | C120: Unid. | D120: 4 | E120: 2.67 | F120: 10.68
A121: 4.15 | B121: Papel Toalha | C121: rolo | D121: 1 | E121: 1.07 | F121: 1.07
A122: 4.16 | B122: Pano de Prato | C122: Unid. | D122: 1 | E122: 1.38 | F122: 1.38
A123: 4.17 | B123: Rolos de Papel Higiênico | C123: rolo | D123: 8 | E123: 0.47 | F123: 3.76
A124: 4.18 | B124: Sabão em Pó 500g | C124: Unid. | D124: 1 | E124: 2.95 | F124: 2.95
A125: 4.19 | B125: Rodo de Borracha | C125: Unid. | D125: 1 | E125: 3.5 | F125: 3.5
A126: 4.20 | B126: Vassoura | C126: Unid. | D126: 1 | E126: 4.24 | F126: 4.24
A127: 4.21 | B127: Sabonetes 90 g | C127: Unid. | D127: 2 | E127: 0.85 | F127: 1.7
A128: MATERIAL DE ESCRITÓRIO CENTRAL - VALOR MENSAL (R$): | F128: =SUM(F107:F127) -> 165.93
A130: 5. | B130: Mobiliário/Equipamentos - Escritorio Central
A131: 5.1 | B131: Mesa Escritório | C131: und x mês | D131: 0.8888888889 | E131: 81.1 | F131: =TRUNC(D131*E131,2) -> 72.08
A132: 5.2 | B132: Gaveteiro | C132: und x mês | D132: 0.8888888889 | E132: 111 | F132: =TRUNC(D132*E132,2) -> 98.66
A133: 5.3 | B133: Armário para Escritório Baixo | C133: und x mês | D133: 0.4444444444 | E133: 116 | F133: =TRUNC(D133*E133,2) -> 51.55
A134: 5.4 | B134: Armário Estante para Escritório | C134: und x mês | D134: 0.2222222222 | E134: 192 | F134: 42.66
A135: 5.5 | B135: Mesa Reunião 8 Lugares | C135: und x mês | D135: 0.05555555556 | E135: 429 | F135: 23.83
A136: 5.6 | B136: Cadeira Giratória com Braço para Escritório | C136: und x mês | D136: 0.8888888889 | E136: 119 | F136: 105.77
A137: 5.7 | B137: Cadeira p/ Escritório Giratória com regulagem por pistão à gás (Sala Reunião) | C137: und x mês | D137: 0.4444444444 | E137: 154 | F137: 68.44
A138: 5.8 | B138: Condicionador de Ar - 22.000 Btus | C138: und x mês | D138: 0.05555555556 | E138: 2050 | F138: 113.88
A139: 5.9 | B139: Condicionador de Ar - 9.000 Btus | C139: und x mês | D139: 0.05555555556 | E139: 845 | F139: 46.94
A140: 5.10 | B140: Filtro Purificador de Água | C140: und x mês | D140: 0.05555555556 | E140: 70 | F140: 3.88
A141: 5.11 | B141: Cafeteira | C141: und x mês | D141: 0.05555555556 | E141: 34 | F141: 1.88
A142: 5.12 | B142: Geladeira | C142: und x mês | D142: 0.05555555556 | E142: 819 | F142: 45.5
A143: 5.13 | B143: Conjunto Microcomputador | C143: und x mês | D143: 1 | E143: 1260 | F143: 1260
A144: 5.14 | B144: Projetor Multimidia (Data-Show) | C144: und x mês | D144: 0.05555555556 | E144: 128 | F144: 7.11
A145: 5.15 | B145: Notebook | C145: und x mês | D145: 0.5555555556 | E145: 1380 | F145: 766.66
A146: 5.16 | B146: Impressora Multifuncional (Impressora+Scanner+Copiadora) | C146: und x mês | D146: 0.4444444444 | E146: 160 | F146: 71.11
A147: 5.17 | B147: Impressora A3 | C147: und x mês | D147: 0.05555555556 | E147: 807 | F147: 44.83
A148: 5.18 | B148: Plotter | C148: und x mês | D148: 0.05555555556 | E148: 2308 | F148: 128.22
A149: 5.19 | B149: Softwares Específicos (No mínimo: Pacote Office 2016; Microsoft Visio Professional Open 2016; Microsoft Project Professional Open 2016; AutoCAD LT; ArcGis Basic com extensão "Spatial Analyst" e 3D Analyst") | C149: und x mês | D149: 0.06 | E149: 15358 | F149: 921.48
A150: 5.20 | B150: Máquina Fotográfica Digital | C150: und x mês | D150: 0.5555555556 | E150: 401 | F150: 222.77
A151: 5.21 | B151: GPS com Cabo e Software | C151: und x mês | D151: 0.4444444444 | E151: 536 | F151: 238.22
A152: MOBILIÁRIO DO ESCRITÓRIO CENTRAL - VALOR MENSAL (R$): | F152: =SUM(F131:F151) -> 4335.47
A154: Observações:
A158: 6. | B158: Serviços Gráficos
A159: 6.1 | B159: Apoio a Gestão e Atividades Técnicas Especializadas, Acompanhamento de Comissionamentos, Testes e Pré-Operação / Estudo e Coleta de Dados da Implantação do Projeto / Plano de Segurança e Saúde do Trabalho
F160: =F161+F162 -> 1020
A161: 6.1.1 | B161: Relatório Parcial | C161: und | D161: 24 | E161: =C218 -> 30 | F161: =TRUNC(D161*E161,2) -> 720
A162: 6.1.2 | B162: Relatório Final | C162: und | D162: 5 | E162: =C219 -> 60 | F162: =TRUNC(D162*E162,2) -> 300
A163: 6.2 | B163: Planejamento de Ações e Marcos Estratégicos | F163: =F164+F165 -> 660
A164: 6.2.1 | B164: Relatório Parcial | C164: und | D164: 8 | E164: =C218 -> 30 | F164: =TRUNC(D164*E164,2) -> 240
A165: 6.2.2 | B165: Relatório Final | C165: und | D165: 7 | E165: =C219 -> 60 | F165: =TRUNC(D165*E165,2) -> 420
A166: 6.3 | B166: Plano de Comunicação Social | F166: =F167 -> 5000
A167: 6.3.1 | B167: Relatório Síntese (Produto PLANO) | C167: und | D167: 4 | E167: =C222 -> 1250 | F167: =TRUNC(D167*E167,2) -> 5000 | G167: Edital
A168: 6.4 | B168: Estratégias de Oferta e Demanda | F168: =F169 -> 120
A169: 6.4.1 | B169: Relatório Final | C169: und | D169: 2 | E169: =C219 -> 60 | F169: =TRUNC(D169*E169,2) -> 120
A170: 6.5 | B170: Estudos e Simulações Elétricas - Incluindo Automação Elétrica e de Processo | F170: =F171+F172 -> 2060
A171: 6.5.1 | B171: Relatório Específico | C171: und | D171: 5 | E171: =C221 -> 400 | F171: =TRUNC(D171*E171,2) -> 2000
A172: 6.5.2 | B172: Relatório Final | C172: und | D172: 1 | E172: =C219 -> 60 | F172: 60
A173: 6.6 | B173: Gestão de Ativos Patrimoniais | F173: =F174 -> 120
A174: 6.6.1 | B174: Relatório Final | C174: und | D174: 2 | E174: =C219 -> 60 | F174: =TRUNC(D174*E174,2) -> 120
A175: 6.7 | B175: Apoio Técnico-Administrativo | F175: =F176+F177 -> 5396
A176: 6.7.1 | B176: Relatório Andamento | C176: und | D176: 18 | E176: =C220 -> 22 | F176: =TRUNC(D176*E176,2) -> 396 | G176: Edital
A177: 6.7.2 | B177: Relatório Síntese | C177: und | D177: 4 | E177: =C222 -> 1250 | F177: 5000 | G177: Edital
A178: MOBILIÁRIO DO ESCRITÓRIO CENTRAL - VALOR MENSAL (R$): | F178: =F160+F163+F166+F168+F170+F173+F175 -> 14376
A180: 7. | B180: EPI - Mensalista
A181: QTD / cada troca | B181: Descrição | C181: Unidade | D181: Periodiciadde da troca | E181: Custo | F181: Previsão Custo Mensal
A182: Campo - Convencional | F182: =SUM(F183:F195) -> 59.43
A183: 3 | B183: Uniforme Brim (Camisa/Calça) | C183: und | D183: 5 | E183: 70 | F183: =TRUNC((E183/D183)*A183,2) -> 42
A184: 1 | B184: Capa de Chuva | C184: und | D184: 10 | E184: 8.5 | F184: =TRUNC((E184/D184)*A184,2) -> 0.85
A185: 1 | B185: Bota de Segurança com biqueira | C185: par | D185: 5 | E185: 16.2 | F185: =TRUNC((E185/D185)*A185,2) -> 3.24
A186: 1 | B186: Capacete de Segurança completo | C186: und | D186: 10 | E186: 6.5 | F186: 0.65
A187: 1 | B187: Protetor Auricular Tipo Plug | C187: und | D187: 0.5 | E187: 0.48 | F187: 0.96
A188: 1 | B188: Protetor Auricular Tipo Concha c/ Abafador | C188: und | D188: 6 | E188: 4.19 | F188: 0.69
A189: 1 | B189: Luva Raspa de Couro | C189: und | D189: 4 | E189: 4.07 | F189: 1.01
A190: 1 | B190: Protetor Solar (100ml) | C190: und | D190: 4 | E190: 18.8 | F190: 4.7
A191: 1 | B191: Boné Árabe em Helanca Malha Fria na Cor Azul | C191: und | D191: 6 | E191: 4.92 | F191: 0.82
A192: 1 | B192: Boné Simples | C192: und | D192: 6 | E192: 5.13 | F192: 0.85
A193: 1 | B193: Óculos Proteção | C193: und | D193: 6 | E193: 1.67 | F193: 0.27
A194: 1 | B194: Cinto Sinalizador Tipo X | C194: und | D194: 10 | E194: 7.52 | F194: 0.75
A195: 1 | B195: Mácara Poeira | C195: und | D195: 0.25 | E195: 0.66 | F195: 2.64
A196: SERVIÇOS GERAIS | F196: =SUM(F197:F200) -> 11.09
A197: 1 | B197: Bota PVC | C197: par | D197: 12 | E197: 15.3 | F197: =TRUNC((E197/D197)*A197,2) -> 1.27
A198: 1 | B198: Bota Couro sem biqueira | C198: par | D198: 6 | E198: 22.35 | F198: =TRUNC((E198/D198)*A198,2) -> 3.72
A199: 1 | B199: Luva Látex | C199: par | D199: 0.25 | E199: 1.16 | F199: =TRUNC((E199/D199)*A199,2) -> 4.64
A200: 1 | B200: Máscara Proteção Poeira (Respirador) | C200: und | D200: 0.5 | E200: 0.73 | F200: 1.46
A201: EPI - Eletricista | F201: =SUM(F202:F212) -> 143.68
A202: 2 | B202: Uniforme Eletricista Retardante A Chama Nr10 Sem Refletivo | C202: und | D202: 4.5 | E202: 161.6 | F202: =TRUNC((E202/D202)*A202,2) -> 71.82
A203: 1 | B203: Luva de Borracha Isolante para alta tensão | C203: par | D203: 6 | E203: 117.7 | F203: 19.61
A204: 1 | B204: Bota de Couro solado de borracha vulcanizado | C204: par | D204: 6 | E204: 33.32 | F204: 5.55
A205: 1 | B205: Bota CA18056 Eletricista/Mecânico/Operadores | C205: par | D205: 6 | E205: 85.38 | F205: 14.23
A206: 1 | B206: Óculos Segurança | C206: und | D206: 3 | E206: 9.22 | F206: 3.07
A207: 1 | B207: Capacete de Segurança completo | C207: und | D207: 10 | E207: 6.83 | F207: 0.68
A208: 1 | B208: Cinto de Segurança para Eletricista | C208: und | D208: 6 | E208: 76.86 | F208: 12.81
A209: 1 | B209: Cinto Segurança Paraquedista Eletricista | C209: und | D209: 10 | E209: 111.14 | F209: 11.11
A210: 1 | B210: Protetor Auricular Tipo Plug | C210: und | D210: 0.5 | E210: 0.49 | F210: 0.98
A211: 1 | B211: Protetor Auricular Tipo Concha c/ Abafador | C211: und | D211: 6 | E211: 4.19 | F211: 0.69
A212: 1 | B212: Protetor Solar (100ml) | C212: und | D212: 6 | E212: 18.8 | F212: 3.13
A217: Preços da Tabela de Engenharia Consultiva Codevasf
A218: RP = | B218: Relatório Parcial (Durante a execução) | C218: 30
... 21 more rows

Sheet Base de Preço (Salários)
A1: Ministério da Integração Nacional - MI
A2: Companhia de Desenvolvimento dos Vales do São Francisco e do Parnaíba
A5: CONTRATAÇÃO DE APOIO TÉCNICO PARA ACOMPANHAMENTO DAS ATIVIDADES DA GESTÃO DO PROJETO DE INTEGRAÇÃO DO RIO SÃO FRANCISCO COM AS BACIAS HIDROGRÁFICAS DO NORDESTE SETENTRIONAL – PISF
A8: MEMORIAL DE CÁLCULO - SALÁRIOS - PERNAMBUCO
A10: Categoria | B10: Profissional | C10: Salário
C11: Hora | D11: Mensal (176h/mês)
A12: C | B12: Categoria Profissional adotado Sal. Mensal | C12: =TRUNC(D12/176,2) -> 82.38 | D12: 14500
A13: P0 | B13: Engenheiro - Profissional Sênior (N. Superior - Formação: T > 15 anos) | C13: =TRUNC(D13/176,2) -> 65.05 | D13: 11450
A14: P1 | B14: Engenheiro - Profissional Pleno (N. Superior - Formação: 10 < T < 15 anos) | C14: =TRUNC(D14/176,2) -> 54.54 | D14: 9600
A15: P2 | B15: Engenheiro - Profissional Médio (N. Superior - Formação: 8 < T < 10 anos) | C15: 51.7 | D15: 9100
A16: P3 | B16: Engenheiro - Profissional Júnior (N. Superior - Formação: 4 < T < 8 anos) | C16: 48.19 | D16: 8483
A17: P4 | B17: Engenheiro - Profissional Trainee (N. Superior - Formação: T < 4 anos) | C17: 46.07 | D17: 8108.32
A18: TS | B18: Técnico - Profissional Especial (N. Médio/Especializado - Formação: T > 10 anos) | C18: 26.13 | D18: 4600
A19: T0 | B19: Técnico - Profissional Sênior (N. Médio/Especializado - Formação: 5 < T < 10 anos) | C19: 22.5 | D19: 3960
A20: T1 | B20: Técnico - Profissional Pleno (N. Médio/Especializado - Formação: 5 < 10 < anos) | C20: 18.18 | D20: 3200
A21: T2 | B21: Técnico - Profissional Júnior (N. Médio/Especializado - Formação: T < 5 anos) | C21: 15 | D21: 2640
A22: T3 | B22: Técnico - Auxiliar (N. Elementar) | C22: 9.94 | D22: 1750
A23: T4 | B23: Servente / Contínuos | C23: 7.72 | D23: 1358.72
A24: AS | B24: Chefe de Escritório (Nível Superior - Formação: T > 15 anos) | C24: 18.18 | D24: 3200
A25: A0 | B25: Secretária (N. Médio - Formação: 8 < T < 15 anos) | C25: 15.34 | D25: 2700
A26: A1 | B26: Assistente Administrativo (N. Médio - Formação: T > 8 anos) | C26: 14.77 | D26: 2600
A27: A2 | B27: Ajudante Administrativo (N. Médio - Formação: T < 8 anos) | C27: 12.5 | D27: 2200
A28: A3 | B28: Auxiliar Administrativo / Motorista (N. Elementar) | C28: 10.22 | D28: 1800
A29: A4 | B29: Serviços Gerais / Vigia (N. Elementar) | C29: 8.4 | D29: 1478.4
A32: MEMORIAL DE CÁLCULO - SALÁRIOS - DISTRITO FEDERAL
A34: Categoria | B34: Profissional | C34: Salário
C35: Hora | D35: Mensal (176h/mês)
A36: C | B36: Categoria Profissional adotado Sal. Mensal | C36: =TRUNC(D36/176,2) -> 82.38 | D36: =D12 -> 14500
A37: P0 | B37: Engenheiro - Profissional Sênior (N. Superior - Formação: T > 15 anos) | C37: =TRUNC(D37/176,2) -> 65.05 | D37: 11450
A38: P1 | B38: Engenheiro - Profissional Pleno (N. Superior - Formação: 10 < T < 15 anos) | C38: =TRUNC(D38/176,2) -> 54.54 | D38: 9600
A39: P2 | B39: Engenheiro - Profissional Médio (N. Superior - Formação: 8 < T < 10 anos) | C39: 51.7 | D39: 9100
A40: P3 | B40: Engenheiro - Profissional Júnior (N. Superior - Formação: 4 < T < 8 anos) | C40: 48.19 | D40: 8483
A41: P4 | B41: Engenheiro - Profissional Trainee (N. Superior - Formação: T < 4 anos) | C41: 46.07 | D41: 8108.32
A42: TS | B42: Técnico - Profissional Especial (N. Médio/Especializado - Formação: T > 10 anos) | C42: 26.13 | D42: 4600
A43: T0 | B43: Técnico - Profissional Sênior (N. Médio/Especializado - Formação: 5 < T < 10 anos) | C43: 22.5 | D43: 3960
A44: T1 | B44: Técnico - Profissional Pleno (N. Médio/Especializado - Formação: 5 < 10 < anos) | C44: 18.18 | D44: 3200
A45: T2 | B45: Técnico - Profissional Júnior (N. Médio/Especializado - Formação: T < 5 anos) | C45: 15 | D45: 2640
A46: T3 | B46: Técnico - Auxiliar (N. Elementar) | C46: 9.94 | D46: 1750
A47: T4 | B47: Servente / Contínuos | C47: 7.72 | D47: 1358.72
A48: AS | B48: Chefe de Escritório (Nível Superior - Formação: T > 15 anos) | C48: 18.18 | D48: 3200
A49: A0 | B49: Secretária (N. Médio - Formação: 8 < T < 15 anos) | C49: 15.34 | D49: 2700
A50: A1 | B50: Assistente Administrativo (N. Médio - Formação: T > 8 anos) | C50: 14.77 | D50: 2600
A51: A2 | B51: Ajudante Administrativo (N. Médio - Formação: T < 8 anos) | C51: 12.5 | D51: 2200
A52: A3 | B52: Auxiliar Administrativo / Motorista (N. Elementar) | C52: 10.22 | D52: 1800
A53: A4 | B53: Serviços Gerais / Vigia (N. Elementar) | C53: 8.4 | D53: 1478.4
